Departmental Area,Entity,Payment Date,Expense Type,Expense Area,Supplier Name,Payment Reference,Invoice Distribution Amount,Description,Suplier Type,Expenditure Type
UK Statistics Family,Office for National Statistics,01/02/2021,Exp - Purchase Of Goods/Services - Contractors,Strategy And Architecture,Talent International,195331,"28,033.20",Information Management Services,SME,Programme Expenditure
UK Statistics Family,Office for National Statistics,01/02/2021,Exp - Purchase Of Goods/Services - Contractors,Commercial Services,Gardiner & Theobald LLP,195338,"24,045.00",Contingent Labour,Large,Programme Expenditure
UK Statistics Family,Office for National Statistics,01/02/2021,Exp - Purchase Of Goods And Services Consultants,Commercial Services,Gardiner & Theobald LLP,195338,"44,625.00",Contingent Labour,Large,Programme Expenditure
UK Statistics Family,Office for National Statistics,02/02/2021,"ICT Outsourcing, Maintenance And Support",Researcher Support And Data Access ,Equiniti Limited,195347,"17,017.70",Information Management Services,Large,Programme Expenditure
UK Statistics Family,Office for National Statistics,02/02/2021,"ICT Outsourcing, Maintenance And Support",Researcher Support And Data Access ,Equiniti Limited,195347,"43,136.17",Information Management Services,Large,Programme Expenditure
UK Statistics Family,Office for National Statistics,02/02/2021,Exp - Purchase Of Goods/Services - IT Contractual Services,Researcher Support And Data Access ,Equiniti Limited,195347,"8,550.00",Information Management Services,Large,Programme Expenditure
UK Statistics Family,Office for National Statistics,02/02/2021,End User Software And Hardware,Researcher Support And Data Access ,Equiniti Limited,195347,"284,572.27",Information Management Services,Large,Programme Expenditure
UK Statistics Family,Office for National Statistics,02/02/2021,Hosting,IT Operations,Equiniti Limited,195347,"148,377.16",Information Management Services,Large,Programme Expenditure
UK Statistics Family,Office for National Statistics,02/02/2021,Exp - Purchase Of Goods/Services - Contractors,Business Architecture,LA FOSSE ASSOCIATES LIMITED,195360,"26,230.00",Information Management Services,Large,Programme Expenditure
UK Statistics Family,Office for National Statistics,02/02/2021,Exp - Purchase Of Goods/Services - Contractors,Business Architecture,LA FOSSE ASSOCIATES LIMITED,195360,"2,750.00",Information Management Services,Large,Programme Expenditure
UK Statistics Family,Office for National Statistics,02/02/2021,Exp - Purchase Of Goods/Services - Contractors,Testing,LA FOSSE ASSOCIATES LIMITED,195360,"3,000.00",Information Management Services,Large,Programme Expenditure
UK Statistics Family,Office for National Statistics,02/02/2021,Exp - Purchase Of Goods/Services - Contractors,Consultancy Management,LA FOSSE ASSOCIATES LIMITED,195360,"26,999.94",Information Management Services,Large,Programme Expenditure
UK Statistics Family,Office for National Statistics,02/02/2021,Exp - Purchase Of Goods/Services - Contractors,Programme Support,LA FOSSE ASSOCIATES LIMITED,195360,"3,000.00",Information Management Services,Large,Programme Expenditure
UK Statistics Family,Office for National Statistics,02/02/2021,Exp - Purchase Of Goods/Services - Contractors,Digital Publishing,LA FOSSE ASSOCIATES LIMITED,195360,"32,040.00",Information Management Services,Large,Programme Expenditure
UK Statistics Family,Office for National Statistics,02/02/2021,Exp - Purchase Of Goods/Services - Contractors,Data Architecture,LA FOSSE ASSOCIATES LIMITED,195360,"3,240.00",Information Management Services,Large,Programme Expenditure
UK Statistics Family,Office for National Statistics,02/02/2021,Exp - Purchase Of Goods/Services - Contractors,Tech Delivery Legacy Sp,LA FOSSE ASSOCIATES LIMITED,195360,"3,600.00",Information Management Services,Large,Programme Expenditure
UK Statistics Family,Office for National Statistics,02/02/2021,Exp - Purchase Of Goods/Services - Contractors,Business Statistics Transformation,LA FOSSE ASSOCIATES LIMITED,195360,"3,300.00",Information Management Services,Large,Programme Expenditure
UK Statistics Family,Office for National Statistics,02/02/2021,Exp - Purchase Of Goods/Services - Contractors,Commercial Services,Gardiner & Theobald LLP,195362,"28,395.00",Contingent Labour,Large,Programme Expenditure
UK Statistics Family,Office for National Statistics,02/02/2021,Exp - Purchase Of Goods/Services - Contractors,Commercial Services,Gardiner & Theobald LLP,195362,"12,000.00",Contingent Labour,Large,Programme Expenditure
UK Statistics Family,Office for National Statistics,02/02/2021,Exp - Purchase Of Goods And Services Consultants,Commercial Services,Gardiner & Theobald LLP,195362,"38,475.00",Contingent Labour,Large,Programme Expenditure
UK Statistics Family,Office for National Statistics,03/02/2021,Exp - Purchase Of Goods/Services - Incentive Payments,Survey Management,Park Retail Ltd,195370,"26,506.80",Survey Response Incentive Vouchers,Large,Programme Expenditure
UK Statistics Family,Office for National Statistics,03/02/2021,Exp - Purchase Of Goods/Services - Incentive Payments,Survey Management,Park Retail Ltd,195370,"7,114.52",Survey Response Incentive Vouchers,Large,Programme Expenditure
UK Statistics Family,Office for National Statistics,03/02/2021,Exp - Purchase Of Goods/Services - Incentive Payments,Survey Management,Park Retail Ltd,195370,"7,184.85",Survey Response Incentive Vouchers,Large,Programme Expenditure
UK Statistics Family,Office for National Statistics,03/02/2021,Exp - Purchase Of Goods/Services - Incentive Payments,Survey Management,Park Retail Ltd,195370,"52,428.76",Survey Response Incentive Vouchers,Large,Programme Expenditure
UK Statistics Family,Office for National Statistics,03/02/2021,Exp - Purchase Of Goods/Services - Contractors,INTEGRATED DATA STRATEGY AND DELIVERY,DATA MODELLING AND DESIGN LIMITED,195380,"26,117.40",Information Management Services,SME,Programme Expenditure
UK Statistics Family,Office for National Statistics,03/02/2021,Exp - Purchase Of Goods/Services - Contractors,Business Architecture,Parity Resources Limited,195383,"10,796.88",Information Management Services,Large,Programme Expenditure
UK Statistics Family,Office for National Statistics,03/02/2021,Exp - Short-Term Contract & Agency Staff - Full Cost,Business Architecture Transformation And Statistical Strategy,Parity Resources Limited,195383,732.6,Information Management Services,Large,Programme Expenditure
UK Statistics Family,Office for National Statistics,03/02/2021,Exp - Short-Term Contract & Agency Staff - Full Cost,Recruitment ,Parity Resources Limited,195383,966.24,Information Management Services,Large,Programme Expenditure
UK Statistics Family,Office for National Statistics,03/02/2021,Exp - Short-Term Contract & Agency Staff - Full Cost,Recruitment ,Parity Resources Limited,195383,316.8,Information Management Services,Large,Programme Expenditure
UK Statistics Family,Office for National Statistics,03/02/2021,Exp - Purchase Of Goods/Services - Contractors,Strategy And Architecture,Parity Resources Limited,195383,"9,804.24",Information Management Services,Large,Programme Expenditure
UK Statistics Family,Office for National Statistics,03/02/2021,Exp - Purchase Of Goods/Services - Contractors,Digital Delivery,Parity Resources Limited,195383,"3,430.50",Information Management Services,Large,Programme Expenditure
UK Statistics Family,Office for National Statistics,04/02/2021,Exp - Purchase Of Goods/Services - IT Contractual Services,Strategy And Architecture,Medley Business Solutions Ltd,195486,"29,462.40",Information Management Services,Large,Programme Expenditure
UK Statistics Family,Office for National Statistics,04/02/2021,Exp - Purchase Of Goods/Services - Contractors,Testing,Certes Computing Ltd,195488,"25,438.31",Information Management Services,SME,Programme Expenditure
UK Statistics Family,Office for National Statistics,04/02/2021,Exp - Purchase Of Goods/Services - Contractors,Programme Delivery,Certes Computing Ltd,195488,"12,169.04",Information Management Services,SME,Programme Expenditure
UK Statistics Family,Office for National Statistics,04/02/2021,Exp - Purchase Of Goods/Services - Contractors,Security Advisory,Certes Computing Ltd,195488,"16,653.12",Information Management Services,SME,Programme Expenditure
UK Statistics Family,Office for National Statistics,04/02/2021,Exp - Purchase Of Goods/Services - Contractors,Security Advisory,Certes Computing Ltd,195488,"16,653.12",Information Management Services,SME,Programme Expenditure
UK Statistics Family,Office for National Statistics,04/02/2021,Exp - Purchase Of Goods/Services - Contractors,Security Advisory,Certes Computing Ltd,195488,"13,183.15",Information Management Services,SME,Programme Expenditure
UK Statistics Family,Office for National Statistics,04/02/2021,Exp - Purchase Of Goods/Services - Contractors,Data Architecture,Certes Computing Ltd,195488,"28,797.12",Information Management Services,SME,Programme Expenditure
UK Statistics Family,Office for National Statistics,04/02/2021,Exp - Purchase Of Goods/Services - Contractors,Data Architecture,Certes Computing Ltd,195488,"18,561.83",Information Management Services,SME,Programme Expenditure
UK Statistics Family,Office for National Statistics,04/02/2021,Exp - Purchase Of Goods/Services - Contractors,Strategy And Architecture,Certes Computing Ltd,195488,"16,652.40",Information Management Services,SME,Programme Expenditure
UK Statistics Family,Office for National Statistics,04/02/2021,Exp - Purchase Of Goods/Services - Contractors,Strategy And Architecture,Certes Computing Ltd,195488,"8,100.00",Information Management Services,SME,Programme Expenditure
UK Statistics Family,Office for National Statistics,04/02/2021,Exp - Purchase Of Goods/Services - Contractors,Tech Delivery Legacy Sp,Certes Computing Ltd,195488,"14,398.56",Information Management Services,SME,Programme Expenditure
UK Statistics Family,Office for National Statistics,04/02/2021,Exp - Purchase Of Goods/Services - Contractors,Tech Delivery Data As A Platform,Certes Computing Ltd,195488,"8,006.28",Information Management Services,SME,Programme Expenditure
UK Statistics Family,Office for National Statistics,04/02/2021,Exp - Purchase Of Goods/Services - Contractors,Digital Delivery,Certes Computing Ltd,195488,"7,200.00",Information Management Services,SME,Programme Expenditure
UK Statistics Family,Office for National Statistics,04/02/2021,Exp - Purchase Of Goods/Services - Contractors,Digital Delivery,Certes Computing Ltd,195488,"13,386.56",Information Management Services,SME,Programme Expenditure
UK Statistics Family,Office for National Statistics,04/02/2021,Exp - Purchase Of Goods/Services - Contractors,Digital Delivery,Certes Computing Ltd,195488,"13,629.84",Information Management Services,SME,Programme Expenditure
UK Statistics Family,Office for National Statistics,04/02/2021,Exp - Purchase Of Goods/Services - Contractors,Digital Delivery,Certes Computing Ltd,195488,"16,204.79",Information Management Services,SME,Programme Expenditure
UK Statistics Family,Office for National Statistics,04/02/2021,Exp - Purchase Of Goods/Services - Contractors,Business Architecture,La International,195489,"8,714.22",Information Management Services,SME,Programme Expenditure
UK Statistics Family,Office for National Statistics,04/02/2021,Exp - Purchase Of Goods/Services - Contractors,Testing,La International,195489,"26,431.68",Information Management Services,SME,Programme Expenditure
UK Statistics Family,Office for National Statistics,04/02/2021,Exp - Purchase Of Goods/Services - Contractors,Testing,La International,195489,"2,269.40",Information Management Services,SME,Programme Expenditure
UK Statistics Family,Office for National Statistics,04/02/2021,Exp - Purchase Of Goods/Services - Contractors,Business Architecture Transformation And Statistical Strategy,La International,195489,"2,563.08",Information Management Services,SME,Programme Expenditure
UK Statistics Family,Office for National Statistics,04/02/2021,Exp - Short-Term Contract & Agency Staff - Full Cost,Recruitment ,La International,195489,"2,588.81",Information Management Services,SME,Programme Expenditure
UK Statistics Family,Office for National Statistics,04/02/2021,Exp - Purchase Of Goods/Services - Contractors,Security Advisory,La International,195489,"3,470.85",Information Management Services,SME,Programme Expenditure
UK Statistics Family,Office for National Statistics,04/02/2021,Exp - Purchase Of Goods/Services - Contractors,Data Architecture,La International,195489,"14,225.04",Information Management Services,SME,Programme Expenditure
UK Statistics Family,Office for National Statistics,04/02/2021,Exp - Purchase Of Goods/Services - Contractors,Data Architecture,La International,195489,"7,048.44",Information Management Services,SME,Programme Expenditure
UK Statistics Family,Office for National Statistics,04/02/2021,Exp - Purchase Of Goods/Services - Contractors,Data Architecture,La International,195489,"24,477.42",Information Management Services,SME,Programme Expenditure
UK Statistics Family,Office for National Statistics,04/02/2021,Exp - Purchase Of Goods/Services - Contractors,Data Architecture,La International,195489,"2,306.77",Information Management Services,SME,Programme Expenditure
UK Statistics Family,Office for National Statistics,04/02/2021,Exp - Purchase Of Goods/Services - Contractors,Tech Delivery Legacy Sp,La International,195489,"26,367.75",Information Management Services,SME,Programme Expenditure
UK Statistics Family,Office for National Statistics,04/02/2021,Exp - Purchase Of Goods/Services - Contractors,Tech Delivery Legacy Sp,La International,195489,"15,858.99",Information Management Services,SME,Programme Expenditure
UK Statistics Family,Office for National Statistics,04/02/2021,Exp - Purchase Of Goods/Services - Contractors,Tech Delivery Data As A Platform,La International,195489,"3,203.88",Information Management Services,SME,Programme Expenditure
UK Statistics Family,Office for National Statistics,04/02/2021,Exp - Purchase Of Goods/Services - Contractors,Tech Delivery Data As A Platform,La International,195489,"6,458.94",Information Management Services,SME,Programme Expenditure
UK Statistics Family,Office for National Statistics,04/02/2021,Exp - Purchase Of Goods/Services - Contractors,IT Applications,La International,195489,"11,213.54",Information Management Services,SME,Programme Expenditure
UK Statistics Family,Office for National Statistics,04/02/2021,Exp - Purchase Of Goods/Services - Contractors,Digital Delivery,La International,195489,"13,456.26",Information Management Services,SME,Programme Expenditure
UK Statistics Family,Office for National Statistics,04/02/2021,Exp - Purchase Of Goods/Services - Contractors,Digital Delivery,La International,195489,"9,611.64",Information Management Services,SME,Programme Expenditure
UK Statistics Family,Office for National Statistics,04/02/2021,End User Software And Hardware,Programme Support,Computacenter (Uk) Limited,195497,"5,380.30",Information Management Services,Large,Programme Expenditure
UK Statistics Family,Office for National Statistics,04/02/2021,End User Software And Hardware,IT Operations,Computacenter (Uk) Limited,195497,"6,600.00",Information Management Services,Large,Programme Expenditure
UK Statistics Family,Office for National Statistics,04/02/2021,Training & Development,Office Of Chief Data And Information,Computacenter (Uk) Limited,195497,"75,254.04",Information Management Services,Large,Programme Expenditure
UK Statistics Family,Office for National Statistics,04/02/2021,Stationery,Ask Business Services,APS Group,195503,"4,544.36",Mailing Services,Large,Programme Expenditure
UK Statistics Family,Office for National Statistics,04/02/2021,Other Goods And Services,Social Survey Transformation Newport,APS Group,195503,"210,309.82",Mailing Services,Large,Programme Expenditure
UK Statistics Family,Office for National Statistics,04/02/2021,Other Goods And Services,Social Survey Transformation Newport,APS Group,195503,"18,022.19",Mailing Services,Large,Programme Expenditure
UK Statistics Family,Office for National Statistics,04/02/2021,Permanent Staff Costs,Policy Secretariat,Cabinet Office,195505,"49,718.92",Fast Stream Recruitment,Large,Programme Expenditure
UK Statistics Family,Office for National Statistics,04/02/2021,EXP - PURCHASE OF GOODS/SERVICES -  NON IT CONTRACTUAL PAYMENTS,Recruitment ,Cabinet Office,195505,"27,056.40",Fast Stream Recruitment,Large,Programme Expenditure
UK Statistics Family,Office for National Statistics,04/02/2021,Recovery Of Secondee Costs,FAST STREAM RECHARGES - CABINET OFFICE,Cabinet Office,195505,"53,938.00",Fast Stream Recruitment,Large,Programme Expenditure
UK Statistics Family,Office for National Statistics,04/02/2021,EXP - PURCHASE OF GOODS/SERVICES -  NON IT CONTRACTUAL PAYMENTS,Covid Infection Survey,HH Associates Ltd,195509,"33,027.35",Print and Post Services,SME,Programme Expenditure
UK Statistics Family,Office for National Statistics,04/02/2021,"ICT Outsourcing, Maintenance And Support",IT Operations,Cdw Limited,195520,"33,870.70",Software Licenses,Large,Programme Expenditure
UK Statistics Family,Office for National Statistics,04/02/2021,Exp - Purchase Of Goods/Services - Incentive Payments,Survey Management,Park Retail Ltd,195525,"41,714.95",Survey Response Incentive Vouchers,Large,Programme Expenditure
UK Statistics Family,Office for National Statistics,04/02/2021,Exp - Purchase Of Goods/Services - Incentive Payments,Survey Management,Park Retail Ltd,195525,"4,211.79",Survey Response Incentive Vouchers,Large,Programme Expenditure
UK Statistics Family,Office for National Statistics,04/02/2021,Exp - Purchase Of Goods/Services - Incentive Payments,Survey Management,Park Retail Ltd,195525,"2,684.89",Survey Response Incentive Vouchers,Large,Programme Expenditure
UK Statistics Family,Office for National Statistics,04/02/2021,Exp - Purchase Of Goods/Services - Incentive Payments,Survey Management,Park Retail Ltd,195525,824.55,Survey Response Incentive Vouchers,Large,Programme Expenditure
UK Statistics Family,Office for National Statistics,04/02/2021,Exp - Purchase Of Goods/Services - Incentive Payments,Survey Management,Park Retail Ltd,195525,"1,890.65",Survey Response Incentive Vouchers,Large,Programme Expenditure
UK Statistics Family,Office for National Statistics,04/02/2021,Exp - Purchase Of Goods/Services - Incentive Payments,Survey Management,Park Retail Ltd,195525,-30,Survey Response Incentive Vouchers,Large,Programme Expenditure
UK Statistics Family,Office for National Statistics,04/02/2021,Exp - Purchase Of Goods/Services - Contractors,Data Architecture,Empiric Solutions Limited,195527,"17,400.00",Information Management Services,Large,Programme Expenditure
UK Statistics Family,Office for National Statistics,04/02/2021,Exp - Purchase Of Goods/Services - IT Contractual Services,Strategy And Architecture,Empiric Solutions Limited,195527,"62,400.00",Information Management Services,Large,Programme Expenditure
UK Statistics Family,Office for National Statistics,04/02/2021,Telecoms,IT Operations,Bt Global Services,195529,"27,572.87",Telephony Charges,Large,Programme Expenditure
UK Statistics Family,Office for National Statistics,04/02/2021,Telecoms,IT Operations,Bt Global Services,195530,"47,707.24",Telephony Charges,Large,Programme Expenditure
UK Statistics Family,Office for National Statistics,04/02/2021,Capitalised Consultancy  IT,Finance,Phoenix Software Ltd,195533,"16,170.00",Software Licenses,SME,Programme Expenditure
UK Statistics Family,Office for National Statistics,04/02/2021,"ICT Outsourcing, Maintenance And Support",IT Operations,Phoenix Software Ltd,195533,"98,886.34",Software Licenses,SME,Programme Expenditure
UK Statistics Family,Office for National Statistics,04/02/2021,End User Software And Hardware,IT Operations,Phoenix Software Ltd,195533,101.94,Software Licenses,SME,Programme Expenditure
UK Statistics Family,Office for National Statistics,04/02/2021,Hosting,IT Operations,CTS (Cloud Technology Solutions Ltd),195538,"118,466.68",DST Infrastructure Preparation,Large,Programme Expenditure
UK Statistics Family,Office for National Statistics,04/02/2021,EXP - PURCHASE OF GOODS/SERVICES -  NON IT CONTRACTUAL PAYMENTS,Data Collection Service,M&C Saatchi UK Ltd,195542,"180,755.21",Marketing Services,Large,Programme Expenditure
UK Statistics Family,Office for National Statistics,05/02/2021,Exp - Purchase Of Goods/Services - IT Contractual Services,International Trade And Transactions,Mango Solutions,195545,"13,872.00",Information Management Services,SME,Programme Expenditure
UK Statistics Family,Office for National Statistics,05/02/2021,Exp - Purchase Of Goods/Services - IT Contractual Services,International Trade And Transactions,Mango Solutions,195545,"45,777.60",Information Management Services,SME,Programme Expenditure
UK Statistics Family,Office for National Statistics,05/02/2021,Exp - Purchase Of Goods/Services - Contractors,Testing,Certes Computing Ltd,195548,"11,785.20",Information Management Services,SME,Programme Expenditure
UK Statistics Family,Office for National Statistics,05/02/2021,Exp - Purchase Of Goods/Services - Contractors,Programme Delivery,Certes Computing Ltd,195548,"12,810.00",Information Management Services,SME,Programme Expenditure
UK Statistics Family,Office for National Statistics,05/02/2021,Exp - Purchase Of Goods/Services - Contractors,Tech Delivery Legacy Sp,Certes Computing Ltd,195548,"9,799.74",Information Management Services,SME,Programme Expenditure
UK Statistics Family,Office for National Statistics,05/02/2021,Exp - Purchase Of Goods/Services - Contractors,Testing,Malikshaw Interim & Executive,195557,"41,141.08",Information Management Services,SME,Programme Expenditure
UK Statistics Family,Office for National Statistics,05/02/2021,Exp - Purchase Of Goods/Services - Contractors,Programme Support,Malikshaw Interim & Executive,195557,"10,705.40",Information Management Services,SME,Programme Expenditure
UK Statistics Family,Office for National Statistics,05/02/2021,Exp - Purchase Of Goods/Services - Contractors,Data Architecture,Malikshaw Interim & Executive,195557,"16,872.00",Information Management Services,SME,Programme Expenditure
UK Statistics Family,Office for National Statistics,05/02/2021,Exp - Purchase Of Goods/Services - Contractors,Strategy And Architecture,Malikshaw Interim & Executive,195557,"13,751.52",Information Management Services,SME,Programme Expenditure
UK Statistics Family,Office for National Statistics,05/02/2021,Exp - Purchase Of Goods/Services - Contractors,Tech Delivery Legacy Sp,Malikshaw Interim & Executive,195557,"13,751.52",Information Management Services,SME,Programme Expenditure
UK Statistics Family,Office for National Statistics,05/02/2021,Exp - Purchase Of Goods/Services - Contractors,Tech Delivery Legacy Sp,Malikshaw Interim & Executive,195557,"14,400.00",Information Management Services,SME,Programme Expenditure
UK Statistics Family,Office for National Statistics,05/02/2021,Exp - Purchase Of Goods/Services - Contractors,IT Applications,Malikshaw Interim & Executive,195557,"14,400.00",Information Management Services,SME,Programme Expenditure
UK Statistics Family,Office for National Statistics,05/02/2021,Exp - Purchase Of Goods/Services - Contractors,Data Science Campus,Malikshaw Interim & Executive,195557,"12,120.00",Information Management Services,SME,Programme Expenditure
UK Statistics Family,Office for National Statistics,05/02/2021,Other Professional Services,People Solutions,Government Legal Department,195560,"28,655.09",Legal Services,Large,Programme Expenditure
UK Statistics Family,Office for National Statistics,05/02/2021,Exp - Purchase Of Goods/Services - Contractors,Programme Support,Parity Resources Limited,195564,"4,192.56",Information Management Services,Large,Programme Expenditure
UK Statistics Family,Office for National Statistics,05/02/2021,Exp - Purchase Of Goods/Services - Contractors,Covid Infection Survey,Parity Resources Limited,195564,"3,000.00",Information Management Services,Large,Programme Expenditure
UK Statistics Family,Office for National Statistics,05/02/2021,Exp - Purchase Of Goods/Services - Contractors,Researcher Support And Data Access ,Parity Resources Limited,195564,"3,008.22",Information Management Services,Large,Programme Expenditure
UK Statistics Family,Office for National Statistics,05/02/2021,Exp - Purchase Of Goods/Services - Contractors,Commercial Services,Parity Resources Limited,195564,"16,660.80",Information Management Services,Large,Programme Expenditure
UK Statistics Family,Office for National Statistics,05/02/2021,Exp - Short-Term Contract & Agency Staff - Full Cost,Recruitment ,Parity Resources Limited,195564,"1,518.48",Information Management Services,Large,Programme Expenditure
UK Statistics Family,Office for National Statistics,05/02/2021,Exp - Short-Term Contract & Agency Staff - Full Cost,Data Architecture,Parity Resources Limited,195564,"1,465.20",Information Management Services,Large,Programme Expenditure
UK Statistics Family,Office for National Statistics,05/02/2021,Exp - Purchase Of Goods/Services - Contractors,Data Architecture,Parity Resources Limited,195564,"3,592.56",Information Management Services,Large,Programme Expenditure
UK Statistics Family,Office for National Statistics,05/02/2021,Exp - Short-Term Contract & Agency Staff - Full Cost,Public Sector And Households,Parity Resources Limited,195564,"1,001.22",Information Management Services,Large,Programme Expenditure
UK Statistics Family,Office for National Statistics,05/02/2021,Exp - Purchase Of Goods/Services - IT Contractual Services,Office Of Chief Data And Information,Akamai Technologies Limited,195565,"36,200.00",Information Management Services,SME,Programme Expenditure
UK Statistics Family,Office for National Statistics,05/02/2021,Marketing & Media,Stakeholder Engagement And Comms,M&C Saatchi UK Ltd,195566,"231,145.74",Marketing Services,Large,Programme Expenditure
UK Statistics Family,Office for National Statistics,05/02/2021,Non IT Maintenance And Hire,Property Services,Eaton Limited,195567,"28,995.00",Rental Charges,Large,Programme Expenditure
UK Statistics Family,Office for National Statistics,05/02/2021,EXP - PURCHASE OF GOODS/SERVICES -  NON IT CONTRACTUAL PAYMENTS,Covid Infection Survey,HH Associates Ltd,195569,"27,250.54",Print and Post Services,SME,Programme Expenditure
UK Statistics Family,Office for National Statistics,08/02/2021,End User Software And Hardware,IT Operations,Phoenix Software Ltd,195746,"134,913.60",Software Licenses,SME,Programme Expenditure
UK Statistics Family,Office for National Statistics,08/02/2021,Exp - Purchase Of Goods/Services - Contractors,Consultancy Management,Talent International,195753,"12,882.00",Information Management Services,SME,Programme Expenditure
UK Statistics Family,Office for National Statistics,08/02/2021,Exp - Purchase Of Goods/Services - Contractors,Researcher Support And Data Access ,Talent International,195753,"17,940.00",Information Management Services,SME,Programme Expenditure
UK Statistics Family,Office for National Statistics,08/02/2021,Exp - Short-Term Contract & Agency Staff - Full Cost,Data Architecture,Talent International,195753,"1,474.96",Information Management Services,SME,Programme Expenditure
UK Statistics Family,Office for National Statistics,08/02/2021,Exp - Purchase Of Goods/Services - Contractors,Tech Delivery Legacy Sp,Talent International,195753,"15,600.00",Information Management Services,SME,Programme Expenditure
UK Statistics Family,Office for National Statistics,08/02/2021,Exp - Short-Term Contract & Agency Staff - Full Cost,Social Survey Transformation Titchfield,Talent International,195753,"4,237.54",Information Management Services,SME,Programme Expenditure
UK Statistics Family,Office for National Statistics,08/02/2021,Exp - Purchase Of Goods/Services - Contractors,Business Architecture,LA FOSSE ASSOCIATES LIMITED,195754,"22,330.00",Information Management Services,Large,Programme Expenditure
UK Statistics Family,Office for National Statistics,08/02/2021,Exp - Purchase Of Goods/Services - Contractors,Business Architecture,LA FOSSE ASSOCIATES LIMITED,195754,"2,750.00",Information Management Services,Large,Programme Expenditure
UK Statistics Family,Office for National Statistics,08/02/2021,Exp - Purchase Of Goods/Services - Contractors,Testing,LA FOSSE ASSOCIATES LIMITED,195754,"3,000.00",Information Management Services,Large,Programme Expenditure
UK Statistics Family,Office for National Statistics,08/02/2021,Exp - Purchase Of Goods/Services - Contractors,Consultancy Management,LA FOSSE ASSOCIATES LIMITED,195754,"23,039.94",Information Management Services,Large,Programme Expenditure
UK Statistics Family,Office for National Statistics,08/02/2021,Exp - Purchase Of Goods/Services - Contractors,Programme Support,LA FOSSE ASSOCIATES LIMITED,195754,"3,000.00",Information Management Services,Large,Programme Expenditure
UK Statistics Family,Office for National Statistics,08/02/2021,Exp - Purchase Of Goods/Services - Contractors,Digital Publishing,LA FOSSE ASSOCIATES LIMITED,195754,"3,600.00",Information Management Services,Large,Programme Expenditure
UK Statistics Family,Office for National Statistics,08/02/2021,Exp - Purchase Of Goods/Services - Contractors,Data Architecture,LA FOSSE ASSOCIATES LIMITED,195754,"4,050.00",Information Management Services,Large,Programme Expenditure
UK Statistics Family,Office for National Statistics,08/02/2021,Exp - Purchase Of Goods/Services - Contractors,Tech Delivery Legacy Sp,LA FOSSE ASSOCIATES LIMITED,195754,"7,200.00",Information Management Services,Large,Programme Expenditure
UK Statistics Family,Office for National Statistics,08/02/2021,Exp - Purchase Of Goods/Services - Contractors,Tech Delivery Legacy Sp,LA FOSSE ASSOCIATES LIMITED,195754,"3,600.00",Information Management Services,Large,Programme Expenditure
UK Statistics Family,Office for National Statistics,08/02/2021,Exp - Purchase Of Goods/Services - Contractors,Business Statistics Transformation,LA FOSSE ASSOCIATES LIMITED,195754,"3,300.00",Information Management Services,Large,Programme Expenditure
UK Statistics Family,Office for National Statistics,08/02/2021,Exp - Purchase Of Goods/Services - Contractors,Senior Management Team Design,SmartSourcing Ltd,195755,"14,400.00",Information Management Services,SME,Programme Expenditure
UK Statistics Family,Office for National Statistics,08/02/2021,Exp - Purchase Of Goods/Services - Contractors,Data Architecture,SmartSourcing Ltd,195755,"29,280.00",Information Management Services,SME,Programme Expenditure
UK Statistics Family,Office for National Statistics,08/02/2021,Exp - Purchase Of Goods/Services - Contractors,Tech Delivery Data As A Platform,SmartSourcing Ltd,195755,"3,600.00",Information Management Services,SME,Programme Expenditure
UK Statistics Family,Office for National Statistics,08/02/2021,Marketing & Media,Stakeholder Engagement And Comms,M&C Saatchi UK Ltd,195756,"975,378.94",Marketing Services,Large,Programme Expenditure
UK Statistics Family,Office for National Statistics,09/02/2021,Exp - Purchase Of Goods/Services - Incentive Payments,Survey Management,P & Mm Ltd,195763,"3,312.00",Survey Response Incentive Vouchers,Large,Programme Expenditure
UK Statistics Family,Office for National Statistics,09/02/2021,Exp - Purchase Of Goods/Services - Incentive Payments,Survey Management,P & Mm Ltd,195763,"3,784.20",Survey Response Incentive Vouchers,Large,Programme Expenditure
UK Statistics Family,Office for National Statistics,09/02/2021,Exp - Purchase Of Goods/Services - Incentive Payments,Survey Management,P & Mm Ltd,195763,"27,648.20",Survey Response Incentive Vouchers,Large,Programme Expenditure
UK Statistics Family,Office for National Statistics,09/02/2021,Exp - Purchase Of Goods/Services - Incentive Payments,Survey Management,P & Mm Ltd,195763,"3,695.00",Survey Response Incentive Vouchers,Large,Programme Expenditure
UK Statistics Family,Office for National Statistics,09/02/2021,Exp - Purchase Of Goods/Services - Incentive Payments,Social Survey Transformation Newport,P & Mm Ltd,195763,"296,938.40",Survey Response Incentive Vouchers,Large,Programme Expenditure
UK Statistics Family,Office for National Statistics,09/02/2021,Exp - Purchase Of Goods/Services - Incentive Payments,Survey Management,P & Mm Ltd,195763,"140,286.00",Survey Response Incentive Vouchers,Large,Programme Expenditure
UK Statistics Family,Office for National Statistics,09/02/2021,Exp - Purchase Of Goods/Services - Incentive Payments,Social Survey Transformation Newport,P & Mm Ltd,195763,"52,341.00",Survey Response Incentive Vouchers,Large,Programme Expenditure
UK Statistics Family,Office for National Statistics,09/02/2021,FM Contract Payments,FM Payments,Vinci Construction UK Limited,195765,"113,731.49",Facilities Mangement Services,Large,Programme Expenditure
UK Statistics Family,Office for National Statistics,09/02/2021,Hosting,IT Operations,CTS (Cloud Technology Solutions Ltd),195772,"155,177.88",DST Infrastructure Preparation,Large,Programme Expenditure
UK Statistics Family,Office for National Statistics,09/02/2021,EXP - PURCHASE OF GOODS/SERVICES -  NON IT CONTRACTUAL PAYMENTS,Data Collection Service,Good Things Foundation,195773,"299,910.00",Census Assisted Digital Services,SME,Programme Expenditure
UK Statistics Family,Office for National Statistics,09/02/2021,Exp - Purchase Of Goods/Services - IT Contractual Services,IT Operations,Methods Business & Digital Technology Ltd,195775,"107,100.00",Information Management Services,Large,Programme Expenditure
UK Statistics Family,Office for National Statistics,09/02/2021,Exp - Short-Term Contract & Agency Staff - Full Cost,International Trade And Transactions,Parity Resources Limited,195777,"5,006.10",Information Management Services,Large,Programme Expenditure
UK Statistics Family,Office for National Statistics,09/02/2021,Exp - Short-Term Contract & Agency Staff - Full Cost,International Trade And Transactions,Parity Resources Limited,195777,"2,348.46",Information Management Services,Large,Programme Expenditure
UK Statistics Family,Office for National Statistics,09/02/2021,Exp - Short-Term Contract & Agency Staff - Full Cost,International Trade And Transactions,Parity Resources Limited,195777,"12,839.04",Information Management Services,Large,Programme Expenditure
UK Statistics Family,Office for National Statistics,09/02/2021,Exp - Purchase Of Goods/Services - Contractors,International Trade And Transactions,Parity Resources Limited,195777,"27,096.00",Information Management Services,Large,Programme Expenditure
UK Statistics Family,Office for National Statistics,09/02/2021,Exp - Short-Term Contract & Agency Staff - Full Cost,Productivity Research And Professional Development,Parity Resources Limited,195777,"4,004.88",Information Management Services,Large,Programme Expenditure
UK Statistics Family,Office for National Statistics,09/02/2021,Exp - Purchase Of Goods/Services - Contractors,Commercial Services,Parity Resources Limited,195777,"12,175.20",Information Management Services,Large,Programme Expenditure
UK Statistics Family,Office for National Statistics,09/02/2021,Exp - Purchase Of Goods/Services - Contractors,Business Statistics Transformation,Parity Resources Limited,195777,"8,971.20",Information Management Services,Large,Programme Expenditure
UK Statistics Family,Office for National Statistics,10/02/2021,Stationery,Lodgecard,Royal Bank of Scotland,195786,979.78,Multiple Procurement Card Purchases  - Stationery ,Large,Programme Expenditure
UK Statistics Family,Office for National Statistics,10/02/2021,Other Goods And Services,GPC,Royal Bank of Scotland,195786,"84,108.66",Multiple Procurement Card Purchases - other goods/services  ,Large,Programme Expenditure
UK Statistics Family,Office for National Statistics,10/02/2021,Travel And Subsistence,Car Hire,Royal Bank of Scotland,195786,"3,840.87",Multiple Procurement Card Purchases - Vehicle Hire  ,Large,Programme Expenditure
UK Statistics Family,Office for National Statistics,10/02/2021,EXP - PURCHASE OF GOODS/SERVICES -  NON IT CONTRACTUAL PAYMENTS,Data Collection Service,Good Things Foundation,195789,"232,040.00",Census Assisted Digital Services,SME,Programme Expenditure
UK Statistics Family,Office for National Statistics,10/02/2021,Exp - Purchase Of Goods/Services - IT Contractual Services,IT Operations,Methods Business & Digital Technology Ltd,195791,"96,450.00",Information Management Services,Large,Programme Expenditure
UK Statistics Family,Office for National Statistics,11/02/2021,Exp - Purchase Of Goods/Services - Contractors,Programme Support,Talent International,195909,"10,560.00",Information Management Services,SME,Programme Expenditure
UK Statistics Family,Office for National Statistics,11/02/2021,Exp - Purchase Of Goods/Services - Contractors,Data Architecture,Talent International,195909,"18,492.00",Information Management Services,SME,Programme Expenditure
UK Statistics Family,Office for National Statistics,11/02/2021,Exp - Short-Term Contract & Agency Staff - Full Cost,Labour Market,Talent International,195909,"3,836.69",Information Management Services,SME,Programme Expenditure
UK Statistics Family,Office for National Statistics,11/02/2021,Exp - Purchase Of Goods/Services - Contractors,Business Architecture,Parity Resources Limited,195910,"11,995.64",Information Management Services,Large,Programme Expenditure
UK Statistics Family,Office for National Statistics,11/02/2021,Exp - Purchase Of Goods/Services - Contractors,Testing,Parity Resources Limited,195910,"15,840.00",Information Management Services,Large,Programme Expenditure
UK Statistics Family,Office for National Statistics,11/02/2021,Exp - Purchase Of Goods/Services - Contractors,Programme Support,Parity Resources Limited,195910,"2,993.80",Information Management Services,Large,Programme Expenditure
UK Statistics Family,Office for National Statistics,11/02/2021,Exp - Purchase Of Goods/Services - Contractors,Covid Infection Survey,Parity Resources Limited,195910,"3,000.00",Information Management Services,Large,Programme Expenditure
UK Statistics Family,Office for National Statistics,11/02/2021,Exp - Purchase Of Goods/Services - Contractors,Productivity Research And Professional Development,Parity Resources Limited,195910,360,Information Management Services,Large,Programme Expenditure
UK Statistics Family,Office for National Statistics,11/02/2021,Exp - Purchase Of Goods/Services - Contractors,Analysis Microdata And Engagement,Parity Resources Limited,195910,658.5,Information Management Services,Large,Programme Expenditure
UK Statistics Family,Office for National Statistics,11/02/2021,Exp - Purchase Of Goods/Services - Contractors,Researcher Support And Data Access ,Parity Resources Limited,195910,"3,008.22",Information Management Services,Large,Programme Expenditure
UK Statistics Family,Office for National Statistics,11/02/2021,Exp - Short-Term Contract & Agency Staff - Full Cost,Data Architecture,Parity Resources Limited,195910,"2,197.80",Information Management Services,Large,Programme Expenditure
UK Statistics Family,Office for National Statistics,11/02/2021,Exp - Purchase Of Goods/Services - Contractors,Data Architecture,Parity Resources Limited,195910,"3,592.56",Information Management Services,Large,Programme Expenditure
UK Statistics Family,Office for National Statistics,11/02/2021,Exp - Purchase Of Goods/Services - Contractors,CDIO UNGP,Parity Resources Limited,195910,"10,777.50",Information Management Services,Large,Programme Expenditure
UK Statistics Family,Office for National Statistics,11/02/2021,Exp - Purchase Of Goods/Services - Contractors,IT Applications,Parity Resources Limited,195910,"16,507.01",Information Management Services,Large,Programme Expenditure
UK Statistics Family,Office for National Statistics,11/02/2021,Exp - Purchase Of Goods/Services - IT Contractual Services,IT Applications,Parity Resources Limited,195910,"11,982.96",Information Management Services,Large,Programme Expenditure
UK Statistics Family,Office for National Statistics,11/02/2021,Exp - Purchase Of Goods/Services - Contractors,Digital Delivery,Parity Resources Limited,195910,"10,291.50",Information Management Services,Large,Programme Expenditure
UK Statistics Family,Office for National Statistics,11/02/2021,Exp - Purchase Of Goods/Services - Contractors,Digital Delivery,Parity Resources Limited,195910,"14,353.92",Information Management Services,Large,Programme Expenditure
UK Statistics Family,Office for National Statistics,11/02/2021,Exp - Purchase Of Goods/Services - IT Contractual Services,Digital Delivery,Parity Resources Limited,195910,"11,534.40",Information Management Services,Large,Programme Expenditure
UK Statistics Family,Office for National Statistics,12/02/2021,Surveys,Census & Soc Methodology Dd,University of Southampton,195917,"26,704.00",Statistical Services,SME,Programme Expenditure
UK Statistics Family,Office for National Statistics,12/02/2021,Exp - Purchase Of Goods/Services - IT Contractual Services,Strategy And Architecture,E Synergy Solutions,195921,"13,800.00",Information Management Services,SME,Programme Expenditure
UK Statistics Family,Office for National Statistics,12/02/2021,Exp - Purchase Of Goods/Services - IT Contractual Services,Tech Delivery Legacy Sp,E Synergy Solutions,195921,"78,840.00",Information Management Services,SME,Programme Expenditure
UK Statistics Family,Office for National Statistics,12/02/2021,Exp - Purchase Of Goods/Services - IT Contractual Services,Tech Delivery Next Gen IT And Infrastructure,E Synergy Solutions,195921,"25,920.00",Information Management Services,SME,Programme Expenditure
UK Statistics Family,Office for National Statistics,12/02/2021,Exp - Purchase Of Goods/Services - IT Contractual Services,IT Operations,E Synergy Solutions,195921,"109,620.00",Information Management Services,SME,Programme Expenditure
UK Statistics Family,Office for National Statistics,12/02/2021,Exp - Purchase Of Goods/Services - Contractors,Testing,Concept Information Technology Ltd T/A Concept Resourcing,195923,"6,394.16",Information Management Services,Large,Programme Expenditure
UK Statistics Family,Office for National Statistics,12/02/2021,Exp - Purchase Of Goods/Services - Contractors,Testing,Concept Information Technology Ltd T/A Concept Resourcing,195923,"5,500.00",Information Management Services,Large,Programme Expenditure
UK Statistics Family,Office for National Statistics,12/02/2021,Exp - Short-Term Contract & Agency Staff - Full Cost,Census CCS Data Collection,Concept Information Technology Ltd T/A Concept Resourcing,195923,"5,836.14",Information Management Services,Large,Programme Expenditure
UK Statistics Family,Office for National Statistics,12/02/2021,Exp - Short-Term Contract & Agency Staff - Full Cost,Census CCS Data Collection,Concept Information Technology Ltd T/A Concept Resourcing,195923,"4,964.39",Information Management Services,Large,Programme Expenditure
UK Statistics Family,Office for National Statistics,12/02/2021,Exp - Short-Term Contract & Agency Staff - Full Cost,Business Change Support,Concept Information Technology Ltd T/A Concept Resourcing,195923,"3,779.24",Information Management Services,Large,Programme Expenditure
UK Statistics Family,Office for National Statistics,12/02/2021,Exp - Purchase Of Goods/Services - Contractors,Census & Soc Methodology Dd,Concept Information Technology Ltd T/A Concept Resourcing,195923,"5,580.00",Information Management Services,Large,Programme Expenditure
UK Statistics Family,Office for National Statistics,12/02/2021,Exp - Short-Term Contract & Agency Staff - Full Cost,Data Architecture,Concept Information Technology Ltd T/A Concept Resourcing,195923,"10,743.38",Information Management Services,Large,Programme Expenditure
UK Statistics Family,Office for National Statistics,12/02/2021,Exp - Purchase Of Goods/Services - Contractors,Data Architecture,Concept Information Technology Ltd T/A Concept Resourcing,195923,"21,360.00",Information Management Services,Large,Programme Expenditure
UK Statistics Family,Office for National Statistics,12/02/2021,Exp - Purchase Of Goods/Services - Contractors,CLOUD ARCHITECTURE,Concept Information Technology Ltd T/A Concept Resourcing,195923,"12,402.00",Information Management Services,Large,Programme Expenditure
UK Statistics Family,Office for National Statistics,12/02/2021,Exp - Purchase Of Goods/Services - IT Contractual Services,Tech Delivery Legacy Sp,Concept Information Technology Ltd T/A Concept Resourcing,195923,"10,200.00",Information Management Services,Large,Programme Expenditure
UK Statistics Family,Office for National Statistics,12/02/2021,Exp - Short-Term Contract & Agency Staff - Full Cost,Prices Division,Concept Information Technology Ltd T/A Concept Resourcing,195923,"4,029.74",Information Management Services,Large,Programme Expenditure
UK Statistics Family,Office for National Statistics,12/02/2021,Exp - Short-Term Contract & Agency Staff - Full Cost,Prices Division,Concept Information Technology Ltd T/A Concept Resourcing,195923,"5,843.13",Information Management Services,Large,Programme Expenditure
UK Statistics Family,Office for National Statistics,12/02/2021,Exp - Short-Term Contract & Agency Staff - Full Cost,Prices Division,Concept Information Technology Ltd T/A Concept Resourcing,195923,"4,029.74",Information Management Services,Large,Programme Expenditure
UK Statistics Family,Office for National Statistics,12/02/2021,Exp - Short-Term Contract & Agency Staff - Full Cost,Prices Division,Concept Information Technology Ltd T/A Concept Resourcing,195923,"5,962.66",Information Management Services,Large,Programme Expenditure
UK Statistics Family,Office for National Statistics,12/02/2021,Exp - Short-Term Contract & Agency Staff - Full Cost,Labour Market,Concept Information Technology Ltd T/A Concept Resourcing,195923,"2,949.94",Information Management Services,Large,Programme Expenditure
UK Statistics Family,Office for National Statistics,12/02/2021,Exp - Purchase Of Goods/Services - IT Contractual Services,Security Operations,Scc,195926,"122,055.00",Software Licenses,Large,Programme Expenditure
UK Statistics Family,Office for National Statistics,12/02/2021,"ICT Outsourcing, Maintenance And Support",IT Operations,Scc,195926,"6,606.45",Software Licenses,Large,Programme Expenditure
UK Statistics Family,Office for National Statistics,12/02/2021,End User Software And Hardware,IT Operations,Scc,195926,"1,124,648.28",Software Licenses,Large,Programme Expenditure
UK Statistics Family,Office for National Statistics,12/02/2021,Postage,Digital Delivery,Xma Limited,195929,"34,201.20",Leasing of Devices,Large,Programme Expenditure
UK Statistics Family,Office for National Statistics,12/02/2021,Exp - Purchase Of Goods/Services - IT Contractual Services,Digital Delivery,Xma Limited,195929,"120,980.40",Leasing of Devices,Large,Programme Expenditure
UK Statistics Family,Office for National Statistics,12/02/2021,Exp - Purchase Of Goods/Services - Contractors,Security Advisory,Certes Computing Ltd,195935,"19,215.12",Information Management Services,SME,Programme Expenditure
UK Statistics Family,Office for National Statistics,12/02/2021,Exp - Purchase Of Goods/Services - Contractors,Strategy And Architecture,Certes Computing Ltd,195935,"32,281.20",Information Management Services,SME,Programme Expenditure
UK Statistics Family,Office for National Statistics,12/02/2021,Exp - Purchase Of Goods/Services - Contractors,Tech Delivery Legacy Sp,Certes Computing Ltd,195935,"16,204.79",Information Management Services,SME,Programme Expenditure
UK Statistics Family,Office for National Statistics,12/02/2021,Exp - Purchase Of Goods/Services - Contractors,Tech Delivery Legacy Sp,Certes Computing Ltd,195935,"14,459.35",Information Management Services,SME,Programme Expenditure
UK Statistics Family,Office for National Statistics,12/02/2021,Exp - Purchase Of Goods/Services - Contractors,Tech Delivery Data As A Platform,Certes Computing Ltd,195935,"8,006.28",Information Management Services,SME,Programme Expenditure
UK Statistics Family,Office for National Statistics,12/02/2021,Exp - Purchase Of Goods/Services - Contractors,Tech Delivery Data As A Platform,Certes Computing Ltd,195935,"3,599.64",Information Management Services,SME,Programme Expenditure
UK Statistics Family,Office for National Statistics,12/02/2021,Exp - Purchase Of Goods/Services - Contractors,IT Applications,Certes Computing Ltd,195935,"16,204.79",Information Management Services,SME,Programme Expenditure
UK Statistics Family,Office for National Statistics,12/02/2021,Exp - Purchase Of Goods/Services - Contractors,Digital Delivery,Certes Computing Ltd,195935,"30,295.91",Information Management Services,SME,Programme Expenditure
UK Statistics Family,Office for National Statistics,12/02/2021,Exp - Purchase Of Goods/Services - Contractors,Digital Delivery,Certes Computing Ltd,195935,"16,204.79",Information Management Services,SME,Programme Expenditure
UK Statistics Family,Office for National Statistics,12/02/2021,Exp - Purchase Of Goods/Services - Contractors,Data Capability,La International,195936,"4,212.27",Information Management Services,SME,Programme Expenditure
UK Statistics Family,Office for National Statistics,12/02/2021,Exp - Short-Term Contract & Agency Staff - Full Cost,Stakeholder Engagement And Comms,La International,195936,"1,657.01",Information Management Services,SME,Programme Expenditure
UK Statistics Family,Office for National Statistics,12/02/2021,Exp - Purchase Of Goods/Services - Contractors,Business Architecture,La International,195936,"7,048.44",Information Management Services,SME,Programme Expenditure
UK Statistics Family,Office for National Statistics,12/02/2021,Exp - Purchase Of Goods/Services - Contractors,Testing,La International,195936,"26,431.68",Information Management Services,SME,Programme Expenditure
UK Statistics Family,Office for National Statistics,12/02/2021,Exp - Purchase Of Goods/Services - Contractors,Testing,La International,195936,"2,269.40",Information Management Services,SME,Programme Expenditure
UK Statistics Family,Office for National Statistics,12/02/2021,Exp - Purchase Of Goods/Services - Contractors,Business Architecture Transformation And Statistical Strategy,La International,195936,"2,563.08",Information Management Services,SME,Programme Expenditure
UK Statistics Family,Office for National Statistics,12/02/2021,Exp - Short-Term Contract & Agency Staff - Full Cost,Recruitment ,La International,195936,"-2,612.67",Information Management Services,SME,Programme Expenditure
UK Statistics Family,Office for National Statistics,12/02/2021,Exp - Purchase Of Goods/Services - Contractors,Security Advisory,La International,195936,"2,429.60",Information Management Services,SME,Programme Expenditure
UK Statistics Family,Office for National Statistics,12/02/2021,Exp - Purchase Of Goods/Services - Contractors,Tech Delivery Legacy Sp,La International,195936,"2,691.25",Information Management Services,SME,Programme Expenditure
UK Statistics Family,Office for National Statistics,12/02/2021,Exp - Purchase Of Goods/Services - Contractors,IT Applications,La International,195936,"11,790.24",Information Management Services,SME,Programme Expenditure
UK Statistics Family,Office for National Statistics,12/02/2021,Exp - Purchase Of Goods/Services - Contractors,Digital Delivery,La International,195936,"7,176.68",Information Management Services,SME,Programme Expenditure
UK Statistics Family,Office for National Statistics,12/02/2021,Exp - Purchase Of Goods/Services - Contractors,Digital Delivery,La International,195936,"16,286.33",Information Management Services,SME,Programme Expenditure
UK Statistics Family,Office for National Statistics,12/02/2021,Exp - Purchase Of Goods/Services - Contractors,Digital Delivery,La International,195936,"14,353.20",Information Management Services,SME,Programme Expenditure
UK Statistics Family,Office for National Statistics,12/02/2021,Exp - Purchase Of Goods/Services - Contractors,Digital Delivery,La International,195936,"35,883.02",Information Management Services,SME,Programme Expenditure
UK Statistics Family,Office for National Statistics,12/02/2021,Exp - Short-Term Contract & Agency Staff - Full Cost,Social Survey Transformation Titchfield,La International,195936,979.42,Information Management Services,SME,Programme Expenditure
UK Statistics Family,Office for National Statistics,12/02/2021,Other Professional Services,Internal Audit,Pricewaterhousecoopers Llp,195939,"42,807.00",Consultancy,Large,Programme Expenditure
UK Statistics Family,Office for National Statistics,12/02/2021,Stationery,Ask Business Services,APS Group,195949,"4,219.98",Mailing Services,Large,Programme Expenditure
UK Statistics Family,Office for National Statistics,12/02/2021,Other Goods And Services,Social Survey Transformation Newport,APS Group,195949,"285,094.94",Mailing Services,Large,Programme Expenditure
UK Statistics Family,Office for National Statistics,12/02/2021,Other Goods And Services,Social Survey Transformation Newport,APS Group,195949,"16,676.11",Mailing Services,Large,Programme Expenditure
UK Statistics Family,Office for National Statistics,12/02/2021,Recovery Of Secondee Costs,FAST STREAM RECHARGES - CABINET OFFICE,Cabinet Office,195950,"363,949.00",Fast Stream Recruitment,Large,Programme Expenditure
UK Statistics Family,Office for National Statistics,12/02/2021,"ICT Outsourcing, Maintenance And Support",Senior Management Team Design,Totalmobile Ltd,195952,"165,746.40",Information Management Services,SME,Programme Expenditure
UK Statistics Family,Office for National Statistics,12/02/2021,"ICT Outsourcing, Maintenance And Support",Consultancy Management,Totalmobile Ltd,195952,"30,000.00",Information Management Services,SME,Programme Expenditure
UK Statistics Family,Office for National Statistics,12/02/2021,"ICT Outsourcing, Maintenance And Support",IT Operations,CTS (Cloud Technology Solutions Ltd),195955,"27,382.45",DST Infrastructure Preparation,Large,Programme Expenditure
UK Statistics Family,Office for National Statistics,12/02/2021,Exp - Purchase Of Goods/Services - Contractors,Testing,Malikshaw Interim & Executive,195960,"21,300.00",Information Management Services,SME,Programme Expenditure
UK Statistics Family,Office for National Statistics,12/02/2021,Exp - Short-Term Contract & Agency Staff - Full Cost,Census CCS Data Collection,Malikshaw Interim & Executive,195960,"1,188.00",Information Management Services,SME,Programme Expenditure
UK Statistics Family,Office for National Statistics,12/02/2021,Exp - Short-Term Contract & Agency Staff - Full Cost,Census CCS Data Collection,Malikshaw Interim & Executive,195960,"8,256.45",Information Management Services,SME,Programme Expenditure
UK Statistics Family,Office for National Statistics,12/02/2021,Exp - Purchase Of Goods/Services - Contractors,Data Architecture,Malikshaw Interim & Executive,195960,"13,769.52",Information Management Services,SME,Programme Expenditure
UK Statistics Family,Office for National Statistics,12/02/2021,Exp - Purchase Of Goods/Services - Contractors,Strategy And Architecture,Malikshaw Interim & Executive,195960,"20,627.28",Information Management Services,SME,Programme Expenditure
UK Statistics Family,Office for National Statistics,12/02/2021,Exp - Purchase Of Goods/Services - IT Contractual Services,Finance,Accenture (UK) Limited,195963,"48,900.00",Consultancy,SME,Programme Expenditure
UK Statistics Family,Office for National Statistics,12/02/2021,EXP - PURCHASE OF GOODS/SERVICES -  NON IT CONTRACTUAL PAYMENTS,Data Collection Service,Leidos Innovations UK Limited,195964,"6,308,450.93",Questionnaire Management,Large,Programme Expenditure
UK Statistics Family,Office for National Statistics,12/02/2021,Surveys,Prices Division,Kantar UK Ltd,195966,"209,188.17",Statistical Services,Large,Programme Expenditure
UK Statistics Family,Office for National Statistics,12/02/2021,Surveys,Prices Division,Kantar UK Ltd,195966,"1,505.83",Statistical Services,Large,Programme Expenditure
UK Statistics Family,Office for National Statistics,12/02/2021,Other Goods And Services,Prices Division,Kantar UK Ltd,195966,"14,950.00",Statistical Services,Large,Programme Expenditure
UK Statistics Family,Office for National Statistics,12/02/2021,Exp - Purchase Of Goods/Services - Contractors,Testing,Parity Resources Limited,195974,"14,738.40",Information Management Services,Large,Programme Expenditure
UK Statistics Family,Office for National Statistics,12/02/2021,Exp - Purchase Of Goods/Services - Contractors,Programme Delivery,Parity Resources Limited,195974,"27,297.60",Information Management Services,Large,Programme Expenditure
UK Statistics Family,Office for National Statistics,12/02/2021,Exp - Purchase Of Goods/Services - Contractors,Consultancy Management,Parity Resources Limited,195974,"12,000.00",Information Management Services,Large,Programme Expenditure
UK Statistics Family,Office for National Statistics,12/02/2021,Exp - Purchase Of Goods/Services - Contractors,Analysis Microdata And Engagement,Parity Resources Limited,195974,"1,602.00",Information Management Services,Large,Programme Expenditure
UK Statistics Family,Office for National Statistics,12/02/2021,Exp - Purchase Of Goods/Services - Contractors,Security Advisory,Parity Resources Limited,195974,"29,733.12",Information Management Services,Large,Programme Expenditure
UK Statistics Family,Office for National Statistics,12/02/2021,Exp - Purchase Of Goods/Services - Contractors,Strategy And Architecture,Parity Resources Limited,195974,"1,730.16",Information Management Services,Large,Programme Expenditure
UK Statistics Family,Office for National Statistics,12/02/2021,Exp - Short-Term Contract & Agency Staff - Full Cost,Digital Delivery,Parity Resources Limited,195974,"1,274.40",Information Management Services,Large,Programme Expenditure
UK Statistics Family,Office for National Statistics,12/02/2021,Exp - Short-Term Contract & Agency Staff - Full Cost,Public Sector And Households,Parity Resources Limited,195974,"1,001.22",Information Management Services,Large,Programme Expenditure
UK Statistics Family,Office for National Statistics,12/02/2021,Exp - Purchase Of Goods/Services - IT Contractual Services,Census & Soc Methodology Dd,Insight Direct,195979,"50,280.76",Information Management Services,Large,Programme Expenditure
UK Statistics Family,Office for National Statistics,12/02/2021,Survey Incentive Vouchers,Census CCS Data Collection,Banner Group Ltd,195980,"58,472.46",Stationery,SME,Programme Expenditure
UK Statistics Family,Office for National Statistics,12/02/2021,Marketing & Media,Social Survey Transformation Newport,Banner Group Ltd,195980,"27,100.80",Stationery,SME,Programme Expenditure
UK Statistics Family,Office for National Statistics,12/02/2021,Marketing & Media,Social Surveys Division,Banner Group Ltd,195980,"52,099.20",Stationery,SME,Programme Expenditure
UK Statistics Family,Office for National Statistics,12/02/2021,Exp - Purchase Of Goods/Services - IT Contractual Services,IT Applications,Diegesis Limited,195984,"147,720.00",Information Management Services,Large,Programme Expenditure
UK Statistics Family,Office for National Statistics,15/02/2021,Other Professional Services,Data As A Service,Hmrc,196231,"193,015.08",Data Acquisition,Large,Programme Expenditure
UK Statistics Family,Office for National Statistics,15/02/2021,Exp - Purchase Of Goods/Services - Contractors,Commercial Services,Gardiner & Theobald LLP,196251,"40,410.00",Contingent Labour,Large,Programme Expenditure
UK Statistics Family,Office for National Statistics,15/02/2021,Exp - Purchase Of Goods And Services Consultants,Commercial Services,Gardiner & Theobald LLP,196251,"50,250.00",Contingent Labour,Large,Programme Expenditure
UK Statistics Family,Office for National Statistics,16/02/2021,Exp - Purchase Of Goods/Services - IT Contractual Services,CLOUD ARCHITECTURE,E Synergy Solutions,196256,"12,960.00",Information Management Services,SME,Programme Expenditure
UK Statistics Family,Office for National Statistics,16/02/2021,Exp - Purchase Of Goods/Services - IT Contractual Services,Strategy And Architecture,E Synergy Solutions,196256,"18,000.00",Information Management Services,SME,Programme Expenditure
UK Statistics Family,Office for National Statistics,16/02/2021,Exp - Purchase Of Goods/Services - Contractors,Digital Delivery,Certes Computing Ltd,196260,"29,474.64",Information Management Services,SME,Programme Expenditure
UK Statistics Family,Office for National Statistics,16/02/2021,Exp - Purchase Of Goods/Services - Contractors,Sustainability And Inequalities,La International,196261,"2,525.52",Information Management Services,SME,Programme Expenditure
UK Statistics Family,Office for National Statistics,16/02/2021,Exp - Purchase Of Goods/Services - Contractors,Data Architecture,La International,196261,"7,112.52",Information Management Services,SME,Programme Expenditure
UK Statistics Family,Office for National Statistics,16/02/2021,Exp - Purchase Of Goods/Services - Contractors,Data Architecture,La International,196261,"3,524.22",Information Management Services,SME,Programme Expenditure
UK Statistics Family,Office for National Statistics,16/02/2021,Exp - Purchase Of Goods/Services - Contractors,Data Architecture,La International,196261,"14,161.02",Information Management Services,SME,Programme Expenditure
UK Statistics Family,Office for National Statistics,16/02/2021,Exp - Purchase Of Goods/Services - IT Contractual Services,IT Operations,CTS (Cloud Technology Solutions Ltd),196266,"130,964.40",DST Infrastructure Preparation,Large,Programme Expenditure
UK Statistics Family,Office for National Statistics,16/02/2021,Exp - Purchase Of Goods/Services - Contractors,IT Applications,Parity Resources Limited,196269,544.68,Information Management Services,Large,Programme Expenditure
UK Statistics Family,Office for National Statistics,16/02/2021,Exp - Purchase Of Goods/Services - IT Contractual Services,IT Applications,Parity Resources Limited,196269,"9,259.56",Information Management Services,Large,Programme Expenditure
UK Statistics Family,Office for National Statistics,16/02/2021,Exp - Purchase Of Goods/Services - Contractors,Digital Delivery,Parity Resources Limited,196269,"16,507.01",Information Management Services,Large,Programme Expenditure
UK Statistics Family,Office for National Statistics,16/02/2021,Exp - Purchase Of Goods/Services - Contractors,Digital Delivery,Parity Resources Limited,196269,"15,071.62",Information Management Services,Large,Programme Expenditure
UK Statistics Family,Office for National Statistics,16/02/2021,Exp - Purchase Of Goods/Services - Contractors,Digital Delivery,Parity Resources Limited,196269,"16,507.01",Information Management Services,Large,Programme Expenditure
UK Statistics Family,Office for National Statistics,16/02/2021,Exp - Purchase Of Goods/Services - Contractors,Digital Delivery,Parity Resources Limited,196269,"11,982.96",Information Management Services,Large,Programme Expenditure
UK Statistics Family,Office for National Statistics,16/02/2021,Exp - Purchase Of Goods/Services - Contractors,Commercial Services,Gardiner & Theobald LLP,196273,"60,900.00",Contingent Labour,Large,Programme Expenditure
UK Statistics Family,Office for National Statistics,16/02/2021,Exp - Purchase Of Goods/Services - Contractors,Commercial Services,Gardiner & Theobald LLP,196273,"82,500.00",Contingent Labour,Large,Programme Expenditure
UK Statistics Family,Office for National Statistics,16/02/2021,Other Goods And Services,Overseas Development,"Foreign, Commonwealth & Development Office",196274,"72,547.53",Subscription and Support Services,Large,Programme Expenditure
UK Statistics Family,Office for National Statistics,17/02/2021,Hosting,IT Operations,Crown Hosting Data Centres Limited,196278,"71,493.01",Information Management Services,SME,Programme Expenditure
UK Statistics Family,Office for National Statistics,17/02/2021,Exp - Short-Term Contract & Agency Staff - Full Cost,Business Change Support,Concept Information Technology Ltd T/A Concept Resourcing,196279,"4,029.74",Information Management Services,Large,Programme Expenditure
UK Statistics Family,Office for National Statistics,17/02/2021,Exp - Short-Term Contract & Agency Staff - Full Cost,Business Change Support,Concept Information Technology Ltd T/A Concept Resourcing,196279,"4,818.53",Information Management Services,Large,Programme Expenditure
UK Statistics Family,Office for National Statistics,17/02/2021,Exp - Short-Term Contract & Agency Staff - Full Cost,Business Change Support,Concept Information Technology Ltd T/A Concept Resourcing,196279,"3,425.28",Information Management Services,Large,Programme Expenditure
UK Statistics Family,Office for National Statistics,17/02/2021,Exp - Short-Term Contract & Agency Staff - Full Cost,Business Architecture Transformation And Statistical Strategy,Concept Information Technology Ltd T/A Concept Resourcing,196279,"4,029.74",Information Management Services,Large,Programme Expenditure
UK Statistics Family,Office for National Statistics,17/02/2021,Exp - Short-Term Contract & Agency Staff - Full Cost,Data Architecture,Concept Information Technology Ltd T/A Concept Resourcing,196279,"1,828.77",Information Management Services,Large,Programme Expenditure
UK Statistics Family,Office for National Statistics,17/02/2021,Exp - Short-Term Contract & Agency Staff - Full Cost,Business Statistics Transformation,Concept Information Technology Ltd T/A Concept Resourcing,196279,"7,171.48",Information Management Services,Large,Programme Expenditure
UK Statistics Family,Office for National Statistics,17/02/2021,Exp - Purchase Of Goods/Services - IT Contractual Services,Tech Delivery Legacy Sp,Ibm United Kingdom Ltd,196281,"25,608.66",Information Management Services,Large,Programme Expenditure
UK Statistics Family,Office for National Statistics,17/02/2021,Exp - Purchase Of Goods/Services - IT Contractual Services,Digital Publishing,Methods Business & Digital Technology Ltd,196283,"43,410.00",Information Management Services,Large,Programme Expenditure
UK Statistics Family,Office for National Statistics,17/02/2021,Exp - Purchase Of Goods/Services - Contractors,Business Architecture,La International,196284,"7,502.32",Information Management Services,SME,Programme Expenditure
UK Statistics Family,Office for National Statistics,17/02/2021,Exp - Purchase Of Goods/Services - Contractors,Testing,La International,196284,"23,868.60",Information Management Services,SME,Programme Expenditure
UK Statistics Family,Office for National Statistics,17/02/2021,Exp - Purchase Of Goods/Services - Contractors,Testing,La International,196284,"2,269.40",Information Management Services,SME,Programme Expenditure
UK Statistics Family,Office for National Statistics,17/02/2021,Exp - Purchase Of Goods/Services - Contractors,Data Architecture,La International,196284,"4,004.82",Information Management Services,SME,Programme Expenditure
UK Statistics Family,Office for National Statistics,17/02/2021,Exp - Purchase Of Goods/Services - Contractors,IT Applications,La International,196284,"6,023.28",Information Management Services,SME,Programme Expenditure
UK Statistics Family,Office for National Statistics,17/02/2021,Exp - Purchase Of Goods/Services - Contractors,Digital Delivery,La International,196284,718.2,Information Management Services,SME,Programme Expenditure
UK Statistics Family,Office for National Statistics,17/02/2021,Exp - Purchase Of Goods/Services - Contractors,Digital Delivery,La International,196284,"1,435.32",Information Management Services,SME,Programme Expenditure
UK Statistics Family,Office for National Statistics,17/02/2021,Training & Development,Security And Information Management Saim,Information Security Forum Limited,196291,"30,000.00",Training and Educational Services,Large,Programme Expenditure
UK Statistics Family,Office for National Statistics,17/02/2021,Exp - Purchase Of Goods/Services - IT Contractual Services,Digital Publishing,Methods Business & Digital Technology Ltd,196293,"120,540.00",Information Management Services,Large,Programme Expenditure
UK Statistics Family,Office for National Statistics,17/02/2021,Exp - Purchase Of Goods/Services - IT Contractual Services,Digital Delivery,Methods Business & Digital Technology Ltd,196293,"95,436.00",Information Management Services,Large,Programme Expenditure
UK Statistics Family,Office for National Statistics,17/02/2021,Exp - Purchase Of Goods/Services - Contractors,Business Architecture,LA FOSSE ASSOCIATES LIMITED,196297,"36,699.94",Information Management Services,Large,Programme Expenditure
UK Statistics Family,Office for National Statistics,17/02/2021,Exp - Purchase Of Goods/Services - Contractors,Business Architecture,LA FOSSE ASSOCIATES LIMITED,196297,"2,750.00",Information Management Services,Large,Programme Expenditure
UK Statistics Family,Office for National Statistics,17/02/2021,Exp - Purchase Of Goods/Services - Contractors,Testing,LA FOSSE ASSOCIATES LIMITED,196297,"3,000.00",Information Management Services,Large,Programme Expenditure
UK Statistics Family,Office for National Statistics,17/02/2021,Exp - Purchase Of Goods/Services - Contractors,Consultancy Management,LA FOSSE ASSOCIATES LIMITED,196297,"9,750.00",Information Management Services,Large,Programme Expenditure
UK Statistics Family,Office for National Statistics,17/02/2021,Exp - Purchase Of Goods/Services - Contractors,Programme Support,LA FOSSE ASSOCIATES LIMITED,196297,"3,000.00",Information Management Services,Large,Programme Expenditure
UK Statistics Family,Office for National Statistics,17/02/2021,Exp - Purchase Of Goods/Services - Contractors,Data Architecture,LA FOSSE ASSOCIATES LIMITED,196297,"4,050.00",Information Management Services,Large,Programme Expenditure
UK Statistics Family,Office for National Statistics,17/02/2021,Exp - Purchase Of Goods/Services - Contractors,CLOUD ARCHITECTURE,LA FOSSE ASSOCIATES LIMITED,196297,"7,200.00",Information Management Services,Large,Programme Expenditure
UK Statistics Family,Office for National Statistics,17/02/2021,Exp - Purchase Of Goods/Services - Contractors,Business Statistics Transformation,LA FOSSE ASSOCIATES LIMITED,196297,"3,300.00",Information Management Services,Large,Programme Expenditure
UK Statistics Family,Office for National Statistics,17/02/2021,Exp - Purchase Of Goods/Services - IT Contractual Services,IT Operations,Insight Direct,196299,"53,814.44",Information Management Services,Large,Programme Expenditure
UK Statistics Family,Office for National Statistics,17/02/2021,Training & Development,Learning And Capability,London Business School,196301,"30,600.00",Training and Educational Services,Large,Programme Expenditure
UK Statistics Family,Office for National Statistics,17/02/2021,Exp - Purchase Of Goods/Services - IT Contractual Services,Tech Delivery Next Gen IT And Infrastructure,Diegesis Limited,196303,"38,400.00",Information Management Services,Large,Programme Expenditure
UK Statistics Family,Office for National Statistics,17/02/2021,Exp - Purchase Of Goods/Services - IT Contractual Services,Tech Delivery Next Gen IT And Infrastructure,Diegesis Limited,196303,"61,200.00",Information Management Services,Large,Programme Expenditure
UK Statistics Family,Office for National Statistics,18/02/2021,EXP - PURCHASE OF GOODS/SERVICES -  NON IT CONTRACTUAL PAYMENTS,Data Collection Service,Serco Ltd,196432,"158,201.89",Census Contact Centre,Large,Programme Expenditure
UK Statistics Family,Office for National Statistics,18/02/2021,Exp - Short-Term Contract & Agency Staff - Full Cost,Stakeholder Engagement And Comms,Parity Resources Limited,196440,"3,666.64",Information Management Services,Large,Programme Expenditure
UK Statistics Family,Office for National Statistics,18/02/2021,Exp - Purchase Of Goods/Services - Contractors,Stakeholder Engagement And Comms,Parity Resources Limited,196440,"6,758.57",Information Management Services,Large,Programme Expenditure
UK Statistics Family,Office for National Statistics,18/02/2021,Exp - Purchase Of Goods/Services - Contractors,Digital Publishing,Parity Resources Limited,196440,"16,560.00",Information Management Services,Large,Programme Expenditure
UK Statistics Family,Office for National Statistics,18/02/2021,Exp - Short-Term Contract & Agency Staff - Full Cost,International Trade And Transactions,Parity Resources Limited,196440,"2,151.28",Information Management Services,Large,Programme Expenditure
UK Statistics Family,Office for National Statistics,18/02/2021,Exp - Short-Term Contract & Agency Staff - Full Cost,International Trade And Transactions,Parity Resources Limited,196440,"2,011.50",Information Management Services,Large,Programme Expenditure
UK Statistics Family,Office for National Statistics,18/02/2021,Exp - Short-Term Contract & Agency Staff - Full Cost,Recruitment ,Parity Resources Limited,196440,"8,086.20",Information Management Services,Large,Programme Expenditure
UK Statistics Family,Office for National Statistics,18/02/2021,Other Goods And Services,Security Advisory,Bridewell Consulting Limited,196443,"30,000.00",Consultancy,SME,Programme Expenditure
UK Statistics Family,Office for National Statistics,18/02/2021,FM Contract Payments,ONS Corporate Funds,Intellectual Property Office,196448,"42,755.47",Courier Services,Large,Programme Expenditure
UK Statistics Family,Office for National Statistics,18/02/2021,Exp - Short-Term Contract & Agency Staff - Full Cost,Business Change Support,Concept Information Technology Ltd T/A Concept Resourcing,196451,"4,986.67",Information Management Services,Large,Programme Expenditure
UK Statistics Family,Office for National Statistics,18/02/2021,Exp - Short-Term Contract & Agency Staff - Full Cost,Business Change Support,Concept Information Technology Ltd T/A Concept Resourcing,196451,"4,987.01",Information Management Services,Large,Programme Expenditure
UK Statistics Family,Office for National Statistics,18/02/2021,Exp - Short-Term Contract & Agency Staff - Full Cost,Business Change Support,Concept Information Technology Ltd T/A Concept Resourcing,196451,"7,857.99",Information Management Services,Large,Programme Expenditure
UK Statistics Family,Office for National Statistics,18/02/2021,Exp - Short-Term Contract & Agency Staff - Full Cost,International Trade And Transactions,Concept Information Technology Ltd T/A Concept Resourcing,196451,"9,016.75",Information Management Services,Large,Programme Expenditure
UK Statistics Family,Office for National Statistics,18/02/2021,Exp - Short-Term Contract & Agency Staff - Full Cost,Data Architecture,Concept Information Technology Ltd T/A Concept Resourcing,196451,"2,072.93",Information Management Services,Large,Programme Expenditure
UK Statistics Family,Office for National Statistics,18/02/2021,Exp - Purchase Of Goods And Services Consultants,Stakeholder Engagement And Comms,La International,196456,"7,576.80",Information Management Services,SME,Programme Expenditure
UK Statistics Family,Office for National Statistics,18/02/2021,Exp - Short-Term Contract & Agency Staff - Full Cost,Census CCS Data Collection,La International,196456,"2,091.98",Information Management Services,SME,Programme Expenditure
UK Statistics Family,Office for National Statistics,18/02/2021,Exp - Purchase Of Goods/Services - Contractors,Business Architecture Transformation And Statistical Strategy,La International,196456,"5,126.16",Information Management Services,SME,Programme Expenditure
UK Statistics Family,Office for National Statistics,18/02/2021,Exp - Purchase Of Goods/Services - Contractors,Tech Delivery Data As A Platform,La International,196456,"12,815.52",Information Management Services,SME,Programme Expenditure
UK Statistics Family,Office for National Statistics,18/02/2021,Exp - Purchase Of Goods/Services - Contractors,IT Applications,La International,196456,"2,883.48",Information Management Services,SME,Programme Expenditure
UK Statistics Family,Office for National Statistics,18/02/2021,Exp - Purchase Of Goods/Services - Other Facilities Costs,Ask Business Services,BaxterStorey,196464,"40,949.00",On-Site Facilities,Large,Programme Expenditure
UK Statistics Family,Office for National Statistics,19/02/2021,Exp - Short-Term Contract & Agency Staff - Full Cost,Stakeholder Engagement And Comms,Concept Information Technology Ltd T/A Concept Resourcing,196473,"3,141.74",Information Management Services,Large,Programme Expenditure
UK Statistics Family,Office for National Statistics,19/02/2021,Exp - Short-Term Contract & Agency Staff - Full Cost,Census CCS Data Collection,Concept Information Technology Ltd T/A Concept Resourcing,196473,137.99,Information Management Services,Large,Programme Expenditure
UK Statistics Family,Office for National Statistics,19/02/2021,Exp - Short-Term Contract & Agency Staff - Full Cost,Business Change Support,Concept Information Technology Ltd T/A Concept Resourcing,196473,"7,052.05",Information Management Services,Large,Programme Expenditure
UK Statistics Family,Office for National Statistics,19/02/2021,Exp - Short-Term Contract & Agency Staff - Full Cost,Business Change Support,Concept Information Technology Ltd T/A Concept Resourcing,196473,"2,014.87",Information Management Services,Large,Programme Expenditure
UK Statistics Family,Office for National Statistics,19/02/2021,Exp - Short-Term Contract & Agency Staff - Full Cost,Business Change Support,Concept Information Technology Ltd T/A Concept Resourcing,196473,"8,025.45",Information Management Services,Large,Programme Expenditure
UK Statistics Family,Office for National Statistics,19/02/2021,Exp - Short-Term Contract & Agency Staff - Full Cost,Business Change Support,Concept Information Technology Ltd T/A Concept Resourcing,196473,"3,626.77",Information Management Services,Large,Programme Expenditure
UK Statistics Family,Office for National Statistics,19/02/2021,Exp - Short-Term Contract & Agency Staff - Full Cost,International Trade And Transactions,Concept Information Technology Ltd T/A Concept Resourcing,196473,"4,029.74",Information Management Services,Large,Programme Expenditure
UK Statistics Family,Office for National Statistics,19/02/2021,Exp - Short-Term Contract & Agency Staff - Full Cost,International Trade And Transactions,Concept Information Technology Ltd T/A Concept Resourcing,196473,"8,059.48",Information Management Services,Large,Programme Expenditure
UK Statistics Family,Office for National Statistics,19/02/2021,Exp - Short-Term Contract & Agency Staff - Full Cost,Business Statistics Transformation,Concept Information Technology Ltd T/A Concept Resourcing,196473,"3,141.74",Information Management Services,Large,Programme Expenditure
UK Statistics Family,Office for National Statistics,19/02/2021,Exp - Short-Term Contract & Agency Staff - Full Cost,Business Statistics Transformation,Concept Information Technology Ltd T/A Concept Resourcing,196473,"2,984.65",Information Management Services,Large,Programme Expenditure
UK Statistics Family,Office for National Statistics,19/02/2021,Other Professional Services,Data As A Service,Hmrc,196479,"526,401.94",Data Acquisition,Large,Programme Expenditure
UK Statistics Family,Office for National Statistics,19/02/2021,Exp - Purchase Of Goods And Services Consultants,Digital Publishing,La International,196483,"21,001.78",Information Management Services,SME,Programme Expenditure
UK Statistics Family,Office for National Statistics,19/02/2021,Exp - Purchase Of Goods/Services - Contractors,Sustainability And Inequalities,La International,196483,"5,051.04",Information Management Services,SME,Programme Expenditure
UK Statistics Family,Office for National Statistics,19/02/2021,Exp - Short-Term Contract & Agency Staff - Full Cost,Recruitment ,La International,196483,882.82,Information Management Services,SME,Programme Expenditure
UK Statistics Family,Office for National Statistics,19/02/2021,Exp - Purchase Of Goods/Services - Contractors,Digital Delivery,La International,196483,"4,485.42",Information Management Services,SME,Programme Expenditure
UK Statistics Family,Office for National Statistics,19/02/2021,Exp - Purchase Of Goods/Services - Contractors,Digital Delivery,La International,196483,"3,203.88",Information Management Services,SME,Programme Expenditure
UK Statistics Family,Office for National Statistics,19/02/2021,Exp - Purchase Of Goods/Services - Contractors,Digital Delivery,La International,196483,"15,378.48",Information Management Services,SME,Programme Expenditure
UK Statistics Family,Office for National Statistics,19/02/2021,Exp - Purchase Of Goods/Services - IT Contractual Services,IT Operations,CTS (Cloud Technology Solutions Ltd),196494,"120,430.20",DST Infrastructure Preparation,Large,Programme Expenditure
UK Statistics Family,Office for National Statistics,19/02/2021,Exp - Short-Term Contract & Agency Staff - Full Cost,Stakeholder Engagement And Comms,Parity Resources Limited,196496,"1,601.22",Information Management Services,Large,Programme Expenditure
UK Statistics Family,Office for National Statistics,19/02/2021,Exp - Purchase Of Goods/Services - Contractors,Covid Infection Survey,Parity Resources Limited,196496,"3,000.00",Information Management Services,Large,Programme Expenditure
UK Statistics Family,Office for National Statistics,19/02/2021,Exp - Short-Term Contract & Agency Staff - Full Cost,International Trade And Transactions,Parity Resources Limited,196496,"4,383.73",Information Management Services,Large,Programme Expenditure
UK Statistics Family,Office for National Statistics,19/02/2021,Exp - Purchase Of Goods/Services - Contractors,International Trade And Transactions,Parity Resources Limited,196496,"29,091.60",Information Management Services,Large,Programme Expenditure
UK Statistics Family,Office for National Statistics,19/02/2021,Exp - Purchase Of Goods/Services - Contractors,Data Architecture,Parity Resources Limited,196496,"3,592.56",Information Management Services,Large,Programme Expenditure
UK Statistics Family,Office for National Statistics,19/02/2021,Exp - Purchase Of Goods/Services - Contractors,Business Statistics Transformation,Parity Resources Limited,196496,"8,589.92",Information Management Services,Large,Programme Expenditure
UK Statistics Family,Office for National Statistics,19/02/2021,Exp - Purchase Of Goods/Services - Contractors,Commercial Services,Gardiner & Theobald LLP,196498,"30,510.00",Contingent Labour,Large,Programme Expenditure
UK Statistics Family,Office for National Statistics,22/02/2021,Other Goods And Services,Security Advisory,Cabinet Office,196634,"52,777.20",Security Vetting Services,Large,Programme Expenditure
UK Statistics Family,Office for National Statistics,22/02/2021,Exp - Purchase Of Goods/Services - Contractors,Business Architecture,LA FOSSE ASSOCIATES LIMITED,196639,"25,300.00",Information Management Services,Large,Programme Expenditure
UK Statistics Family,Office for National Statistics,22/02/2021,Exp - Purchase Of Goods/Services - Contractors,Business Architecture,LA FOSSE ASSOCIATES LIMITED,196639,"2,750.00",Information Management Services,Large,Programme Expenditure
UK Statistics Family,Office for National Statistics,22/02/2021,Exp - Purchase Of Goods/Services - Contractors,Testing,LA FOSSE ASSOCIATES LIMITED,196639,"3,000.00",Information Management Services,Large,Programme Expenditure
UK Statistics Family,Office for National Statistics,22/02/2021,Exp - Purchase Of Goods/Services - Contractors,Consultancy Management,LA FOSSE ASSOCIATES LIMITED,196639,"9,750.00",Information Management Services,Large,Programme Expenditure
UK Statistics Family,Office for National Statistics,22/02/2021,Exp - Purchase Of Goods/Services - Contractors,Programme Support,LA FOSSE ASSOCIATES LIMITED,196639,"3,000.00",Information Management Services,Large,Programme Expenditure
UK Statistics Family,Office for National Statistics,22/02/2021,Exp - Purchase Of Goods/Services - Contractors,Data Architecture,LA FOSSE ASSOCIATES LIMITED,196639,"4,050.00",Information Management Services,Large,Programme Expenditure
UK Statistics Family,Office for National Statistics,22/02/2021,Exp - Purchase Of Goods/Services - Contractors,Tech Delivery Legacy Sp,LA FOSSE ASSOCIATES LIMITED,196639,"7,200.00",Information Management Services,Large,Programme Expenditure
UK Statistics Family,Office for National Statistics,22/02/2021,Exp - Purchase Of Goods/Services - Contractors,Business Statistics Transformation,LA FOSSE ASSOCIATES LIMITED,196639,"3,300.00",Information Management Services,Large,Programme Expenditure
UK Statistics Family,Office for National Statistics,23/02/2021,Exp - Purchase Of Goods/Services - IT Contractual Services,Digital Publishing,Swirrl It Ltd,196651,"72,213.60",Information Management Services,SME,Programme Expenditure
UK Statistics Family,Office for National Statistics,23/02/2021,Titchfield Postage Meter,Postage,Pitney Bowes Ltd,196654,"30,712.06",Postage,Large,Programme Expenditure
UK Statistics Family,Office for National Statistics,23/02/2021,End User Software And Hardware,Tech Delivery Next Gen IT And Infrastructure,Phoenix Software Ltd,196656,"20,766.07",Software Licenses,SME,Programme Expenditure
UK Statistics Family,Office for National Statistics,23/02/2021,End User Software And Hardware,IT Operations,Phoenix Software Ltd,196656,"107,338.18",Software Licenses,SME,Programme Expenditure
UK Statistics Family,Office for National Statistics,23/02/2021,End User Software And Hardware,IT Operations,Stone Computers,196657,"55,800.00",Computers and Peripherals,Large,Programme Expenditure
UK Statistics Family,Office for National Statistics,23/02/2021,Exp - Purchase Of Goods/Services - IT Contractual Services,IT Operations,Softcat,196659,"37,187.35",Information Management Services,SME,Programme Expenditure
UK Statistics Family,Office for National Statistics,23/02/2021,Exp - Purchase Of Goods/Services - Contractors,Tech Delivery Legacy Sp,Certes Computing Ltd,196662,"6,533.16",Information Management Services,SME,Programme Expenditure
UK Statistics Family,Office for National Statistics,23/02/2021,Exp - Purchase Of Goods/Services - Contractors,Tech Delivery Data As A Platform,Certes Computing Ltd,196662,"15,468.14",Information Management Services,SME,Programme Expenditure
UK Statistics Family,Office for National Statistics,23/02/2021,Exp - Purchase Of Goods/Services - Contractors,Tech Delivery Data As A Platform,Certes Computing Ltd,196662,"8,006.28",Information Management Services,SME,Programme Expenditure
UK Statistics Family,Office for National Statistics,23/02/2021,Exp - Purchase Of Goods/Services - Contractors,Digital Delivery,Certes Computing Ltd,196662,"7,200.00",Information Management Services,SME,Programme Expenditure
UK Statistics Family,Office for National Statistics,23/02/2021,Exp - Purchase Of Goods/Services - Contractors,Digital Delivery,Certes Computing Ltd,196662,"19,150.26",Information Management Services,SME,Programme Expenditure
UK Statistics Family,Office for National Statistics,23/02/2021,Exp - Purchase Of Goods/Services - Contractors,Business Architecture,La International,196663,"8,196.49",Information Management Services,SME,Programme Expenditure
UK Statistics Family,Office for National Statistics,23/02/2021,Exp - Purchase Of Goods/Services - Contractors,Testing,La International,196663,"28,482.14",Information Management Services,SME,Programme Expenditure
UK Statistics Family,Office for National Statistics,23/02/2021,Exp - Purchase Of Goods/Services - Contractors,Testing,La International,196663,"2,269.40",Information Management Services,SME,Programme Expenditure
UK Statistics Family,Office for National Statistics,23/02/2021,Exp - Purchase Of Goods/Services - Contractors,Security Advisory,La International,196663,"3,470.85",Information Management Services,SME,Programme Expenditure
UK Statistics Family,Office for National Statistics,23/02/2021,Exp - Purchase Of Goods/Services - Contractors,Data Architecture,La International,196663,"7,112.52",Information Management Services,SME,Programme Expenditure
UK Statistics Family,Office for National Statistics,23/02/2021,Exp - Purchase Of Goods/Services - Contractors,Data Architecture,La International,196663,"3,524.22",Information Management Services,SME,Programme Expenditure
UK Statistics Family,Office for National Statistics,23/02/2021,Exp - Purchase Of Goods/Services - Contractors,Data Architecture,La International,196663,"3,588.30",Information Management Services,SME,Programme Expenditure
UK Statistics Family,Office for National Statistics,23/02/2021,Exp - Purchase Of Goods/Services - Contractors,IT Applications,La International,196663,"8,906.76",Information Management Services,SME,Programme Expenditure
UK Statistics Family,Office for National Statistics,23/02/2021,Exp - Purchase Of Goods/Services - Contractors,Digital Delivery,La International,196663,"6,407.76",Information Management Services,SME,Programme Expenditure
UK Statistics Family,Office for National Statistics,23/02/2021,Exp - Purchase Of Goods/Services - Contractors,Digital Delivery,La International,196663,"3,075.70",Information Management Services,SME,Programme Expenditure
UK Statistics Family,Office for National Statistics,23/02/2021,Other Goods And Services,Beyond 2021 Research And Design,The Sensible Code Company,196672,"92,160.00",Statistical Services,SME,Programme Expenditure
UK Statistics Family,Office for National Statistics,24/02/2021,Telecoms,Digital Delivery,Xma Limited,196684,"125,345.68",Leasing of Devices,Large,Programme Expenditure
UK Statistics Family,Office for National Statistics,24/02/2021,End User Software And Hardware,Digital Delivery,Xma Limited,196684,"549,218.86",Leasing of Devices,Large,Programme Expenditure
UK Statistics Family,Office for National Statistics,24/02/2021,Other Goods And Services,PPA Central,Cabinet Office,196689,"8,373.60",Fast Stream Recruitment,Large,Programme Expenditure
UK Statistics Family,Office for National Statistics,24/02/2021,EXP - PURCHASE OF GOODS/SERVICES -  NON IT CONTRACTUAL PAYMENTS,People Solutions,Cabinet Office,196689,"227,890.48",HR Services,Large,Programme Expenditure
UK Statistics Family,Office for National Statistics,24/02/2021,Other Goods And Services,Security Advisory,Cabinet Office,196689,"13,767.60",Security Vetting Services,Large,Programme Expenditure
UK Statistics Family,Office for National Statistics,24/02/2021,Permanent Staff Costs,ONS Transactions,Cabinet Office,196689,"165,795.58",Fast Stream Recruitment,Large,Programme Expenditure
UK Statistics Family,Office for National Statistics,24/02/2021,Recovery Of Secondee Costs,FAST STREAM RECHARGES - CABINET OFFICE,Cabinet Office,196689,"104,577.43",Fast Stream Recruitment,Large,Programme Expenditure
UK Statistics Family,Office for National Statistics,24/02/2021,Exp - Short-Term Contract & Agency Staff - Full Cost,Census CCS Data Collection,Malikshaw Interim & Executive,196690,"1,659.60",Information Management Services,SME,Programme Expenditure
UK Statistics Family,Office for National Statistics,24/02/2021,Exp - Purchase Of Goods/Services - Contractors,Digital Delivery,Malikshaw Interim & Executive,196690,"13,751.52",Information Management Services,SME,Programme Expenditure
UK Statistics Family,Office for National Statistics,24/02/2021,Exp - Purchase Of Goods/Services - Contractors,Digital Delivery,Malikshaw Interim & Executive,196690,"13,751.52",Information Management Services,SME,Programme Expenditure
UK Statistics Family,Office for National Statistics,24/02/2021,Exp - Purchase Of Goods/Services - IT Contractual Services,IT Operations,CTS (Cloud Technology Solutions Ltd),196691,"60,215.10",DST Infrastructure Preparation,Large,Programme Expenditure
UK Statistics Family,Office for National Statistics,24/02/2021,Hosting,IT Operations,CTS (Cloud Technology Solutions Ltd),196691,"214,196.48",DST Infrastructure Preparation,Large,Programme Expenditure
UK Statistics Family,Office for National Statistics,24/02/2021,EXP - PURCHASE OF GOODS/SERVICES -  NON IT CONTRACTUAL PAYMENTS,Data Collection Service,HH Associates Ltd,196693,"979,453.33",Print and Post Services,SME,Programme Expenditure
UK Statistics Family,Office for National Statistics,24/02/2021,EXP - PURCHASE OF GOODS/SERVICES -  NON IT CONTRACTUAL PAYMENTS,Covid Infection Survey,HH Associates Ltd,196693,"22,442.06",Print and Post Services,SME,Programme Expenditure
UK Statistics Family,Office for National Statistics,24/02/2021,EXP - PURCHASE OF GOODS/SERVICES -  NON IT CONTRACTUAL PAYMENTS,Census CCS Data Collection,Adecco UK Limited,196695,"437,840.40",Census People Services Contractual,SME,Programme Expenditure
UK Statistics Family,Office for National Statistics,24/02/2021,EXP - PURCHASE OF GOODS/SERVICES -  NON IT CONTRACTUAL PAYMENTS,Census CCS Data Collection,Granby Marketing Services Ltd,196696,"148,417.91",Stoarage and Distribution Services,Large,Programme Expenditure
UK Statistics Family,Office for National Statistics,24/02/2021,Surveys,Crime Statistics,Kantar UK Ltd,196697,"241,166.40",Statistical Services,Large,Programme Expenditure
UK Statistics Family,Office for National Statistics,24/02/2021,Capitalised Specialist Contractors IT,Tech Delivery Data As A Platform,Kainos,196699,"97,126.60",Information Management Services,Large,Programme Expenditure
UK Statistics Family,Office for National Statistics,24/02/2021,Hosting,Tech Delivery Data As A Platform,Kainos,196699,"7,917.72",Information Management Services,Large,Programme Expenditure
UK Statistics Family,Office for National Statistics,24/02/2021,Exp - Purchase Of Goods And Services Consultants,Consultancy Management,Bloom Procurement Services Ltd,196701,"59,400.94",Consultancy,Large,Programme Expenditure
UK Statistics Family,Office for National Statistics,24/02/2021,Exp - Purchase Of Goods/Services - IT Contractual Services,IT Operations,Methods Business & Digital Technology Ltd,196702,"154,050.00",Information Management Services,Large,Programme Expenditure
UK Statistics Family,Office for National Statistics,24/02/2021,Exp - Purchase Of Goods/Services - IT Contractual Services,Digital Publishing,Armakuni Ltd,196707,"29,805.00",Information Management Services,SME,Programme Expenditure
UK Statistics Family,Office for National Statistics,01/02/2021,Marketing & Media,Stakeholder Engagement And Comms,Family & Education / iChild,30002495,"57,936.00",Marketing Services,SME,Programme Expenditure
UK Statistics Family,Office for National Statistics,01/02/2021,Surveys,Covid Infection Survey,IQVIA Limited,30002496,"28,577,128.80",Statistical Services,Large,Programme Expenditure
UK Statistics Family,Office for National Statistics,01/02/2021,Surveys,Covid Infection Survey,IQVIA Limited,30002497,"15,434,869.96",Statistical Services,Large,Programme Expenditure
UK Statistics Family,Office for National Statistics,02/02/2021,Exp - Purchase Of Goods/Services - Incentive Payments,Covid Infection Survey,Sodexo Motivation Solutions U.K. ltd,30002498,"605,719.00",Survey Response Incentive Vouchers,Large,Programme Expenditure
UK Statistics Family,Office for National Statistics,02/02/2021,Exp - Purchase Of Goods/Services - Incentive Payments,Covid Infection Survey,Sodexo Motivation Solutions U.K. ltd,30002499,"37,861.60",Survey Response Incentive Vouchers,Large,Programme Expenditure
UK Statistics Family,Office for National Statistics,04/02/2021,Exp - Purchase Of Goods/Services - Incentive Payments,Covid Infection Survey,Sodexo Motivation Solutions U.K. ltd,30002503,"2,251,223.56",Survey Response Incentive Vouchers,Large,Programme Expenditure
UK Statistics Family,Office for National Statistics,05/02/2021,Exp - Purchase Of Goods/Services - Incentive Payments,Covid Infection Survey,Sodexo Motivation Solutions U.K. ltd,30002504,"4,535,342.28",Survey Response Incentive Vouchers,Large,Programme Expenditure
UK Statistics Family,Office for National Statistics,05/02/2021,Vat Liability,VAT,HM Revenue & Customs,30002505,"9,135,741.70",VAT due,Large,Programme Expenditure
UK Statistics Family,Office for National Statistics,05/02/2021,Hosting,IT Operations,Amazon Web Services Inc,30002506,"56,851.90",Information Management Services,Large,Programme Expenditure
UK Statistics Family,Office for National Statistics,08/02/2021,Exp - Purchase Of Goods/Services - Incentive Payments,Covid Infection Survey,Sodexo Motivation Solutions U.K. ltd,30002508,"54,876.48",Survey Response Incentive Vouchers,Large,Programme Expenditure
UK Statistics Family,Office for National Statistics,08/02/2021,Exp - Purchase Of Goods/Services - Incentive Payments,Covid Infection Survey,Sodexo Motivation Solutions U.K. ltd,30002509,"92,380.26",Survey Response Incentive Vouchers,Large,Programme Expenditure
UK Statistics Family,Office for National Statistics,09/02/2021,Exp - Purchase Of Goods/Services - Incentive Payments,Covid Infection Survey,Sodexo Motivation Solutions U.K. ltd,30002510,"64,565.12",Survey Response Incentive Vouchers,Large,Programme Expenditure
UK Statistics Family,Office for National Statistics,11/02/2021,Exp - Purchase Of Goods/Services - Incentive Payments,Covid Infection Survey,Sodexo Motivation Solutions U.K. ltd,30002516,"2,915,277.76",Survey Response Incentive Vouchers,Large,Programme Expenditure
UK Statistics Family,Office for National Statistics,11/02/2021,Exp - Purchase Of Goods/Services - Incentive Payments,Covid Infection Survey,Sodexo Motivation Solutions U.K. ltd,30002517,"96,228.48",Survey Response Incentive Vouchers,Large,Programme Expenditure
UK Statistics Family,Office for National Statistics,12/02/2021,Exp - Purchase Of Goods/Services - Incentive Payments,Covid Infection Survey,Sodexo Motivation Solutions U.K. ltd,30002520,"112,068.00",Survey Response Incentive Vouchers,Large,Programme Expenditure
UK Statistics Family,Office for National Statistics,12/02/2021,Exp - Purchase Of Goods/Services - Incentive Payments,Covid Infection Survey,Sodexo Motivation Solutions U.K. ltd,30002521,"64,200.60",Survey Response Incentive Vouchers,Large,Programme Expenditure
UK Statistics Family,Office for National Statistics,12/02/2021,Exp - Purchase Of Goods/Services - Incentive Payments,Covid Infection Survey,Sodexo Motivation Solutions U.K. ltd,30002522,"69,756.00",Survey Response Incentive Vouchers,Large,Programme Expenditure
UK Statistics Family,Office for National Statistics,12/02/2021,Exp - Purchase Of Goods/Services - Incentive Payments,Covid Infection Survey,Sodexo Motivation Solutions U.K. ltd,30002523,"39,756.00",Survey Response Incentive Vouchers,Large,Programme Expenditure
UK Statistics Family,Office for National Statistics,16/02/2021,Surveys,Covid Infection Survey,IQVIA Limited,30002525,"3,192,761.87",Statistical Services,Large,Programme Expenditure
UK Statistics Family,Office for National Statistics,17/02/2021,Electricity,Property Newport,Edf Energy,30002533,"25,346.62",Site Utilities,Large,Programme Expenditure
UK Statistics Family,Office for National Statistics,18/02/2021,Census Payroll ,Census Pay,HM Revenue & Customs,30002535,"318,771.22",PAYE due,Large,Programme Expenditure
UK Statistics Family,Office for National Statistics,18/02/2021,Exp - Purchase Of Goods/Services - Other ICT Costs Software,Learning And Capability,getAbstract AG,30002536,"44,700.00",Software Licenses,Large,Programme Expenditure
UK Statistics Family,Office for National Statistics,22/02/2021,Exp - Purchase Of Goods/Services - Incentive Payments,Covid Infection Survey,Sodexo Motivation Solutions U.K. ltd,30002548,"84,846.00",Survey Response Incentive Vouchers,Large,Programme Expenditure
UK Statistics Family,Office for National Statistics,22/02/2021,Exp - Purchase Of Goods/Services - Incentive Payments,Covid Infection Survey,Sodexo Motivation Solutions U.K. ltd,30002549,"82,872.00",Survey Response Incentive Vouchers,Large,Programme Expenditure
UK Statistics Family,Office for National Statistics,22/02/2021,Exp - Purchase Of Goods/Services - Incentive Payments,Covid Infection Survey,Sodexo Motivation Solutions U.K. ltd,30002550,"83,640.00",Survey Response Incentive Vouchers,Large,Programme Expenditure
UK Statistics Family,Office for National Statistics,22/02/2021,Exp - Purchase Of Goods/Services - Incentive Payments,Covid Infection Survey,Sodexo Motivation Solutions U.K. ltd,30002551,"81,384.00",Survey Response Incentive Vouchers,Large,Programme Expenditure
UK Statistics Family,Office for National Statistics,23/02/2021,Exp - Purchase Of Goods/Services - Incentive Payments,Covid Infection Survey,Sodexo Motivation Solutions U.K. ltd,30002552,"3,032,695.08",Survey Response Incentive Vouchers,Large,Programme Expenditure
UK Statistics Family,Office for National Statistics,23/02/2021,Exp - Purchase Of Goods/Services - Incentive Payments,Covid Infection Survey,Sodexo Motivation Solutions U.K. ltd,30002553,"93,434.40",Survey Response Incentive Vouchers,Large,Programme Expenditure
UK Statistics Family,Office for National Statistics,24/02/2021,Exp - Purchase Of Goods/Services - Incentive Payments,Covid Infection Survey,Sodexo Motivation Solutions U.K. ltd,30002554,"83,417.41",Survey Response Incentive Vouchers,Large,Programme Expenditure
UK Statistics Family,Office for National Statistics,24/02/2021,Exp - Purchase Of Goods/Services - Incentive Payments,Covid Infection Survey,Sodexo Motivation Solutions U.K. ltd,30002555,"81,288.00",Survey Response Incentive Vouchers,Large,Programme Expenditure
UK Statistics Family,Office for National Statistics,26/02/2021,Exp - Purchase Of Goods/Services - Incentive Payments,Covid Infection Survey,Sodexo Motivation Solutions U.K. ltd,30002556,"2,861,945.64",Survey Response Incentive Vouchers,Large,Programme Expenditure
,,,,,,Report Total,"97,618,602.81",,,
